{"text_format":"1","workbook":"xlsx","n_sheets":19,"sheets":["PRVA STRAN","DRUGA STRAN","1. UVOD","2.SPLOŠNE ZNAČILNOSTI ODL.","3.IZVAJALEC in 4.ZAVEZANEC","5.VZDRŽ.OBJEKTOV","6.MERITVE,INTERPRETACIJA HG.","7.MESTO,ČAS,NAČIN VZORČENJA","8.VRSTA MERITEV,OBSEG ONESN. OM","9.PREDČRP. REZULTATI PARAM.","10.METODE,OPREMA","11.OPOZORILNE SPR","12.VREDNOTENJE OS","13.UGOTOVITVE VPLIV","14.PREDLOGI","15. UKREPI","16. POOBLASTILO","17. PRILOGE","Seznami"],"not_rendered":{"charts":0,"images":29,"macros":1,"external_links":0,"defined_names":15,"comments":17,"pivot_tables":0},"unopened":[],"bounds":{"document_bytes":16777216,"sheet_cells":100000,"rows_first":2000,"rows_last":500,"rows_between":2000,"halvings":0,"cell_chars":16384,"cell_head_chars":4096},"cells_cut":0,"cells_raw":0,"read":"whole","date_system":"1900"}

{"sheet":"PRVA STRAN","index":0,"n_rows":30,"n_cols":1,"rows_kept":30,"cut":false,"hidden":false,"merged":[]}
["VERZIJA: 13. 1. 2022"]
[]
[]
[]
[]
[]
[]
[]
[]
[]
[]
[]
[]
[]
[]
[]
["POROČILO O OBRATOVALNEM MONITORINGU STANJA PODZEMNE VODE ZA ODLAGALIŠČE "]
[]
[]
[]
[]
[]
[]
["ZA LETO  2021"]
[]
[]
[]
[]
[]
["Kraj in datum"]

{"sheet":"DRUGA STRAN","index":1,"n_rows":8,"n_cols":2,"rows_kept":8,"cut":false,"hidden":false,"merged":[]}
[]
[null,"NASLOV POROČILA"]
[null,"EVIDENČNA ŠTEVILKA POROČILA"]
[null,"IZVAJALEC OBRATOVALNEGA MONITORINGA"]
[null,"NAROČNIK"]
[null,"VODJA NALOGE "]
[null,"SODELAVCI"]
[null,"PODIZVAJALCI"]

{"sheet":"1. UVOD","index":2,"n_rows":8,"n_cols":2,"rows_kept":8,"cut":false,"hidden":false,"merged":[]}
["1.","UVODNO POGLAVJE"]
["1.1.","LETO IZVEDENEGA OBRATOVALNEGA MONITORINGA"]
["1.2.","VELJAVNI PREDPIS, KI UREJA ODLAGALIŠČA ODPADKOV"]
["1.3.","VELJAVNI PREDPIS, KI UREJA OBRATOVALNI MONITORING STANJA PODZEMNE VODE "]
["1.4.","PROGRAM OBRATOVALNEGA MONITORINGA STANJA PODZEMNE VODE"]
["1.5.","PROGRAM UKREPOV V PRIMERU PRESEGANJA OPOZORILNE SPREMEMBE PARAMETROV PODZEMNE VODE"]
["1.6.","IZDANA ODLOČBA ZA OBRATOVANJE ODLAGALIŠČA"]
["1.7.","IZVAJANJE OBRATOVALNEGA MONITORINGA STANJA POVRŠINSKIH VODA (da/ne)"]

{"sheet":"2.SPLOŠNE ZNAČILNOSTI ODL.","index":3,"n_rows":29,"n_cols":2,"rows_kept":29,"cut":false,"hidden":false,"merged":[[1,1,1,2],[9,1,9,2]]}
["2.","SPLOŠNE ZNAČILNOSTI ODLAGALIŠČA"]
[null,"Opis odlagališča:"]
["2.1.","LOKACIJA ODLAGALIŠČA:"]
["2.2.","VRSTA ODLAGALIŠČA:"]
["2.3.","STATUS ODLAGALIŠČA:"]
["2.4.","TESNJENOST DNA ODLAGALIŠČA: "]
["2.5.","ODVODNJA:"]
[null,"izcedne vode, padavinske odpadne vode, zaledne vode, itd."]
["2.6.","RABA PROSTORA V ZALEDJU ODLAGALIŠČA:"]
["2.7.","Hidrogeologija:"]
["2.8.","VODONOSNIKI NA OBMOČJU ODLAGALIŠČA:"]
["2.9.","TIP VODONOSNIKA NA OBMOČJU ODLAGALIŠČA:"]
["2.10.","HIDRODINAMSKI TIP VODONOSNIKA NA OBMOČJU ODLAGALIŠČA:"]
["2.11.","KOEFICIENT PREPUSTNOSTI VODONOSNIKOV (m/s):"]
["2.12.","UČINKOVITA POROZNOST (%) :"]
["2.13.","HITROST TOKA PODZEMNE VODE (m/s):"]
["2.14.","GRADIENT TOKA (/):"]
["2.15.","VODONOSNIKI V CILJNI HIDROGEOLOŠKI CONI:"]
["2.16.","HIDRODINAMSKI TIP VODONOSNIKA V CILJNI HIDROGEOLOŠKI CONI:"]
["2.17.","KOLIČINA PODZEMNE VODE POD ODLAGALIŠČEM (m3/s):"]
["2.18.","VODOVARSTVENA OBMOČJA:"]
["2.19.","VODNO ZAJETJE S PODELJENIM VODNIM DOVOLJENJEM:"]
["2.20.","OBMOČJE NATURA OZ. EKOLOŠKO POMEMBNO OBMOČJE:"]
["2.21.","ODDALJENOST OD POVRŠINSKIH VODOTOKOV:"]
["2.22.","HIDRODINAMSKI ODNOS PODZEMNE IN POVRŠINSKE VODE"]
["2.23.","PRETOK POVRŠINSKEGA VODOTOKA:"]
["2.24.","DNO ODLAGALIŠČA:"]
["2.25.","GLOBINA OD DNA ODLAGALIŠČA DO PODZEMNE VODE:"]
["2.26.","SMER TOKA PODZEMNE VODE:"]

{"sheet":"3.IZVAJALEC in 4.ZAVEZANEC","index":4,"n_rows":32,"n_cols":2,"rows_kept":32,"cut":false,"hidden":false,"merged":[]}
["3.","PODATKI O IZVAJALCU OBRATOVALNEGA MONITORINGA"]
[null,"Naziv pooblaščenega izvajalca: "]
[null,"Naslov pooblaščenega izvajalca:"]
[null,"Ulica:"]
[null,"Hišna številka:"]
[null,"Poštna številka:"]
[null,"Ime pošte:"]
[null,"Identifikacijska številka za DDV:"]
[null,"Šifra dejavnosti izvajalca:"]
[null,"Kontaktna oseba:"]
[null,"Telefon:"]
[null,"Fax:"]
[null,"Elektronski naslov:"]
[null,"Št. pooblastila:"]
[null,"Veljavnost:"]
[]
["3.1.","Naziv podizvajalca:"]
[null,"Odgovorna oseba:"]
[null,"pobarvaj me"]
["4.","PODATKI O ZAVEZANCU MONITORINGA"]
[null,"Naziv zavezanca monitoringa: "]
[null,"Naslov zavezanca monitoringa:"]
[null,"Ulica:"]
[null,"Hišna številka:"]
[null,"Poštna številka:"]
[null,"Ime pošte:"]
[null,"Identifikacijska številka za DDV:"]
[null,"Šifra dejavnosti zavezanca monitoringa:"]
[null,"Kontaktna oseba:"]
[null,"telefon:"]
[null,"fax:"]
[null,"elektronski naslov:"]

{"sheet":"5.VZDRŽ.OBJEKTOV","index":5,"n_rows":17,"n_cols":9,"rows_kept":17,"cut":false,"hidden":false,"merged":[[0,1,0,4],[16,1,16,8],[17,1,24,8]]}
["5.","VZDRŽEVANJE OBJEKTOV ZA IZVAJANJE OBRATOVALNEGA MONITORINGA"]
[]
["5.1.","Merilno mesto","Čiščenje","Popravilo sond za zvezno merjenje HG parametrov","Reaktivacija","Sanacija","Ustreznost","Predlogi","Ostalo"]
[]
[]
[]
[]
[]
[]
[]
[]
[]
[]
[]
[null,"pobarvaj me"]
[]
["5.2.","Opis vzdrževalnih del na merilnih mestih:"]

{"sheet":"6.MERITVE,INTERPRETACIJA HG.","index":6,"n_rows":58,"n_cols":12,"rows_kept":58,"cut":false,"hidden":false,"merged":[[2,0,3,0],[6,0,7,0],[4,0,5,0],[2,1,3,1],[4,1,5,1],[6,1,7,1],[15,2,15,11],[27,10,27,11],[26,2,26,11],[38,1,38,5],[27,2,27,3],[27,4,27,5],[16,6,16,7],[16,8,16,9],[27,6,27,7],[27,8,27,9],[16,10,16,11],[57,1,57,5],[58,1,73,5],[16,2,16,3],[16,4,16,5],[39,1,54,5]]}
["6.","MERITVE IN INTERPRETACIJA HIDROGEOLOŠKIH PARAMETROV"]
[null,null,null,null,"izvajalec HG meritev"]
["6.1.","NAČIN MERITEV HIDROGEOLOŠKIH PARAMETROV (GLADINE PODZEMNE VODE oziroma PRETOK):","avtomatsko"]
[null,null,"ročno"]
["6.2.","NAČIN MERITEV TEMPERATURE PODZEMNE VODE:","avtomatsko"]
[null,null,"ročno"]
["6.3.","POGOSTOST MERITEV HIDROGEOLOŠKIH PARAMETROV PODZEMNE VODE:","avtomatsko"]
[null,null,"ročno"]
["6.4.","GRAF: MERITVE GLADINE PODZEMNE VODE OZ. PRETOKOV NA VSEH MERILNIH MESTIH V TEKOČEM LETU + KOLIČINA PADAVIN","vstavi graf"]
["6.5.","GRAF: MERITVE GLADINE PODZEMNE VODE OZ. PRETOKOV NA VSEH MERILNIH MESTIH V CELOTNEM OPAZOVALNEM OBDOBJU","vstavi graf"]
["6.6.","GRAF: MERITVE TEMPERATURE PODZEMNE VODE NA VSEH MERILNIH MESTIH V TEKOČEM LETU","vstavi graf"]
["6.7.","GRAF: MERITVE TEMPERATURE PODZEMNE VODE NA VSEH MERILNIH MESTIH V CELOTNEM OPAZOVALNEM OBDOBJU","vstavi graf"]
["6.8.","KARTA GLADIN PODZEMNE VODE:","vstavi sliko"]
["6.9.","OSTALO","vstavi sliko oz. graf"]
[]
["6.10.",null,"GLADINA PODZEMNE VODE (m n.m.)"]
[null,null,"št. podatkov",null,"minimum",null,"maksimum",null,"povprečje",null,"razpon"]
[null,"Merilno mesto","celotno opazovalno obdobje (od - do)"," tekoče leto","celotno opazovalno obdobje (od - do)"," tekoče leto","celotno opazovalno obdobje (od - do)"," tekoče leto","celotno opazovalno obdobje (od - do)"," tekoče leto","celotno opazovalno obdobje (od - do)"," tekoče leto"]
[]
[]
[]
[]
[]
[]
[null,"pobarvaj me I"]
[]
["6.11.",null,"PRETOKI (l/s) OZ. VODOSTAJ (m n.m.)"]
[null,null,"št. podatkov",null,"minimum",null,"maksimum",null,"povprečje",null,"razpon"]
[null,"Merilno mesto","celotno opazovalno obdobje (od - do)"," tekoče leto","celotno opazovalno obdobje (od - do)"," tekoče leto","celotno opazovalno obdobje (od - do)"," tekoče leto","celotno opazovalno obdobje (od - do)"," tekoče leto","celotno opazovalno obdobje (od - do)"," tekoče leto"]
[]
[]
[]
[]
[]
[]
[null,"pobarvaj me II"]
[]
[]
["6.12.","INTERPRETACIJA HIDROGEOLOŠKIH PARAMETROV:"]
[]
[]
[]
[]
[]
[]
[]
[]
[]
[]
[]
[]
[]
[]
[]
[]
[]
[]
["6.13.","PREVERJANJE KVALITETE MERITEV GLADINE PODZEMNE VODE:"]

{"sheet":"7.MESTO,ČAS,NAČIN VZORČENJA","index":7,"n_rows":25,"n_cols":19,"rows_kept":25,"cut":false,"hidden":false,"merged":[[0,1,0,12],[16,2,16,5],[25,1,32,7],[24,1,24,7],[1,1,1,12],[16,14,16,17],[16,6,16,9],[16,10,16,13]]}
["7.","MESTO, ČAS IN NAČIN VZORČENJA"]
[null,"Merilna mesta:"]
["7.1.","Merilno mesto","GKX","GKY","Z ","Vrsta merilnega mesta","Z ustja","globina vrtine (m)","Lokacija merilnega mesta","Meritve GPV oz. pretoka","Vzorčenje","Mesto vzorčenja na vodotoku","Filtrski odsek od-do (m)","Vodonosnik"]
[]
[]
[]
[]
[]
[]
[]
[]
[]
[null,"pobarvaj me I"]
[]
[]
["7.2.","Čas vzorčenja:"]
["7.3.",null,"merilno mesto #",null,null,null,"merilno mesto #",null,null,null,"merilno mesto #",null,null,null,"merilno mesto #",null,null,null,"pobarvaj me II"]
[null,"datum vzorčenja"]
["7.4.","hidrološko stanje v času vzorčenja"]
["7.5.","standard vzorčenja"]
["7.6.","način vzorčenja"]
["7.7.","videz vzorca podzemne vode "]
[null,"laboratorijska številka vzorca"]
[]
["7.8.","Dodatne opombe:"]

{"sheet":"8.VRSTA MERITEV,OBSEG ONESN. OM","index":8,"n_rows":120,"n_cols":6,"rows_kept":120,"cut":false,"hidden":false,"merged":[[0,1,0,5],[119,1,119,4],[120,1,126,4]]}
["8.","VRSTA MERITEV IN OBSEG ONESNAŽEVAL, VKLJUČENIH V OBRATOVALNI MONITORING"]
[null,null,"REDNI/RAZŠIRJEN PROGRAM","leto zadnjega\nrazširjenega nabora"]
["8.1.","Obseg onesnaževal:"]
[]
["8.2.",null,"Terenski parametri:"]
[null,"Šifra parametra:","PARAMETER:","Enota "]
[null,1010,"Temperatura zraka","°C"]
[null,1020,"Temperatura  vode ","°C"]
[null,1060,"pH vrednost","/"]
[null,1070,"Električna prevodnost (°C)","uS/cm"]
[null,1100,"Redoks potencial","mV"]
[null,1080,"Vsebnost kisika","mg/l O2"]
[null,1090,"Nasičenost s kisikom","%"]
[null,1111,"Motnost","NTU"]
[null,1040,"Videz","opisno"]
[null,1303,"Prehodnost vrtine ob vzorčenju","m"]
[null,1302,"Globina do podzemne vode","m"]
[]
["8.3.",null,"Osnovni parametri:"]
[null,"Šifra parametra:","PARAMETER:","Enota "]
[null,1029,"Barva","m-1"]
[null,2100,"TOC","mg/l C"]
[null,8250,"AOX","ug/l Cl"]
[null,2140,"Amonij","mg/l NH4"]
[null,2270,"Natrij","mg/l Na"]
[null,2280,"Kalij","mg/l K"]
[null,2250,"Kalcij","mg/l Ca"]
[null,2260,"Magnezij","mg/l Mg"]
[null,2300,"Železo","mg/l Fe"]
[null,2310,"Hidrogenkarbonati","mg/l HCO3"]
[null,2160,"Nitrati","mg/l NO3"]
[null,2170,"Sulfati","mg/l SO4"]
[null,2180,"Kloridi","mg/l Cl"]
[null,2230,"Ortofosfati","mg/l PO4"]
[null,3010,"Bor","mg/l B"]
[]
["8.4.",null,"Indikativni parametri:"]
[null,"Šifra parametra:","PARAMETER:","Enota ","redni program","razširjen program"]
[null,2150,"Nitriti","mg/l NO2"]
[null,2210,"Fluoridi","mg/l F"]
[null,3060,"Cianidi","ug/l CN"]
[null,2330,"Sulfidi","mg/l S"]
[null,null,"Kovine"]
[null,4010,"Aluminij","ug/l Al"]
[null,4020,"Antimon","ug/l Sb"]
[null,4030,"Arzen","ug/l As"]
[null,4040,"Baker","ug/l Cu"]
[null,4070,"Barij","ug/l Ba"]
[null,4080,"Berilij","ug/l Be"]
[null,4090,"Cink","ug/l Zn"]
[null,4120,"Kadmij","ug/l Cd"]
[null,4150,"Kobalt","ug/l Co"]
[null,4160,"Kositer","ug/l Sn"]
[null,4190,"Krom (skupno)","ug/l Cr"]
[null,4180,"Krom (6+)","ug/l Cr6+"]
[null,2290,"Mangan","ug/l Mn"]
[null,4220,"Molibden","ug/l Mo"]
[null,4230,"Nikelj","ug/l Ni"]
[null,4260,"Selen","ug/l Se"]
[null,4270,"Srebro","ug/l Ag"]
[null,4290,"Svinec","ug/l Pb"]
[null,4495,"Talij","ug/l Tl"]
[null,4370,"Titan","ug/l Ti"]
[null,4500,"Telur","ug/l Te"]
[null,4330,"Vanadij","ug/l V"]
[null,4340,"Živo srebro","ug/l Hg"]
[null,3070,"Mineralna olja","ug/l"]
[null,5010,"Fenolne snovi","ug/l"]
[null,8820,"Epiklorhidrin","ug/l"]
[null,8185,"Lahkohlapni klorirani ogljikovodiki (LKCH) - vsota","ug/l Cl"]
[null,8070,"Diklorometan ","ug/l"]
[null,8060,"Tetraklorometan ","ug/l"]
[null,8010,"Kloroform ","ug/l"]
[null,8140,"1,1,1-trikloroetan","ug/l"]
[null,8090,"1,2- Dikloroetan","ug/l"]
[null,8110,"cis-1,2 - Dikloroeten","ug/l"]
[null,8130,"Trikloroeten","ug/l"]
[null,8120,"Tetrakloroeten","ug/l"]
[null,7600,"Lahkohlapni aromatski ogljikovodiki - BTEX - vsota","ug/l"]
[null,8190,"Benzen","ug/l"]
[null,8210,"Ksilen (vsota o-, p-, m-)","ug/l"]
[null,8200,"Toulen","ug/l"]
[null,8430,"Etil benzen (vsota)","ug/l"]
[null,3080,"Poliklorirani bifenili - PCB - vsota","ug/l"]
[null,3081,"PCB-28","ug/l"]
[null,3082,"PCB-52","ug/l"]
[null,3083,"PCB-101","ug/l"]
[null,3085,"PCB-138","ug/l"]
[null,3086,"PCB-153","ug/l"]
[null,3087,"PCB-180","ug/l"]
[null,3079,"PCB-194","ug/l"]
[null,7180,"Policiklični aromatski ogljikovodiki - PAH - vsota","ug/l"]
[null,7070,"fluoranten","ug/l"]
[null,7110,"benzo(b)fluoranten","ug/l"]
[null,7120,"benzo(k)fluoranten","ug/l"]
[null,7130,"benzo(a)piren","ug/l"]
[null,7160,"indeno(1,2,3-cd)piren","ug/l"]
[null,7140,"benzo(ghi)perilen","ug/l"]
[null,6990,"Pesticidi - vsota","ug/l"]
[null,6010,"Alaklor","ug/l"]
[null,6280,"Terbutilazin","ug/l"]
[null,6520,"Dimetenamid","ug/l"]
[null,6341,"Klortoluron","ug/l"]
[null,6020,"Metolaklor","ug/l"]
[null,6210,"Atrazin","ug/l"]
[null,6220,"Desetil - atrazin","ug/l"]
[null,6230,"Desizopropil - atrazin","ug/l"]
[null,6240,"Simazin","ug/l"]
[null,6260,"Prometrin","ug/l"]
[null,6250,"Propazin","ug/l"]
[]
[]
[]
["8.5.","Dodatni parametri:"]
[null,"Šifra parametra:","PARAMETER:","Enota ","redni program","razširjen program"]
[]
["8.6.","PARAMETER:","Enota ","redni program","razširjen program"]
[null,"Identifikacija organskih spojin "]
[]
["8.7.","Dodatne opombe:"]

{"sheet":"9.PREDČRP. REZULTATI PARAM.","index":9,"n_rows":144,"n_cols":21,"rows_kept":144,"cut":false,"hidden":false,"merged":[[0,1,0,14],[35,8,35,11],[35,12,35,15],[53,8,53,11],[53,12,53,15],[22,8,22,11],[22,12,22,15],[15,1,20,10],[14,1,14,10],[22,4,22,7],[35,4,35,7],[3,1,3,2],[3,3,3,6],[3,7,3,10],[22,16,22,19],[35,16,35,19],[53,16,53,19],[3,11,3,14],[3,15,3,18],[128,16,128,19],[144,1,149,6],[143,1,143,6],[128,4,128,7],[53,4,53,7],[128,8,128,11],[134,1,134,2],[132,3,132,6],[132,7,132,10],[139,1,141,2],[132,11,132,14],[132,1,132,2],[133,1,133,2],[128,12,128,15],[132,15,132,18]]}
["9.","NAČIN PREDČRPANJA IN IZMERJENE VREDNOSTI OSNOVNIH IN INDIKATIVNIH PARAMETROV PODZEMNIH VODA IN DRUGIH ONESNAŽEVAL, VKLJUČENIH V OBRATOVALNI MONITORING"]
[]
["9.1.","Predčrpanje:"]
[null,"Ime merilnega mesta",null,{"$f":"'7.MESTO,ČAS,NAČIN VZORČENJA'!C17","v":"merilno mesto #"},null,null,null,{"$f":"'7.MESTO,ČAS,NAČIN VZORČENJA'!G17","v":"merilno mesto #"},null,null,null,{"$f":"'7.MESTO,ČAS,NAČIN VZORČENJA'!K17","v":"merilno mesto #"},null,null,null,{"$f":"'7.MESTO,ČAS,NAČIN VZORČENJA'!$O$17","v":"merilno mesto #"},null,null,null,"pobarvaj me I"]
[null,null,"Datum predčrpanja"]
["9.2.",1305,"Standard predčrpanja"]
["9.3.",1600,"Način predčrpanja"]
["9.4.",1603,"Hitrost črpanja (l/min)"]
[null,1606,"Celotna količina predčrpane vode (l)"]
[null,1300,"Začetna globina podzemne vode (m)"]
["9.5.",1304,"Prehodnost vrtine (m) "]
["9.6.",1604,"Čas črpanja (min)"]
["9.7.",1301,"Globina do podzemne vode po predčrpanju (m)"]
[]
["9.8.","Opombe:"]
[]
[]
[]
[]
[]
[]
[]
["9.9.",null,"Rezultati terenskih meritev:",null,{"$f":"$D$4","v":"merilno mesto #"},null,null,null,{"$f":"$H$4","v":"merilno mesto #"},null,null,null,{"$f":"$L$4","v":"merilno mesto #"},null,null,null,{"$f":"$P$4","v":"merilno mesto #"},null,null,null,"pobarvaj me II"]
[null,"Šifra parametra:","PARAMETER:","Enota/Izražen kot ",{"$f":"IF('7.MESTO,ČAS,NAČIN VZORČENJA'!C18=\"\",\"datum\",'7.MESTO,ČAS,NAČIN VZORČENJA'!C18)","v":"datum"},{"$f":"IF('7.MESTO,ČAS,NAČIN VZORČENJA'!D18=\"\",\"datum\",'7.MESTO,ČAS,NAČIN VZORČENJA'!D18)","v":"datum"},{"$f":"IF('7.MESTO,ČAS,NAČIN VZORČENJA'!E18=\"\",\"datum\",'7.MESTO,ČAS,NAČIN VZORČENJA'!E18)","v":"datum"},{"$f":"IF('7.MESTO,ČAS,NAČIN VZORČENJA'!F18=\"\",\"datum\",'7.MESTO,ČAS,NAČIN VZORČENJA'!F18)","v":"datum"},{"$f":"IF('7.MESTO,ČAS,NAČIN VZORČENJA'!G18=\"\",\"datum\",'7.MESTO,ČAS,NAČIN VZORČENJA'!G18)","v":"datum"},{"$f":"IF('7.MESTO,ČAS,NAČIN VZORČENJA'!H18=\"\",\"datum\",'7.MESTO,ČAS,NAČIN VZORČENJA'!H18)","v":"datum"},{"$f":"IF('7.MESTO,ČAS,NAČIN VZORČENJA'!I18=\"\",\"datum\",'7.MESTO,ČAS,NAČIN VZORČENJA'!I18)","v":"datum"},{"$f":"IF('7.MESTO,ČAS,NAČIN VZORČENJA'!J18=\"\",\"datum\",'7.MESTO,ČAS,NAČIN VZORČENJA'!J18)","v":"datum"},{"$f":"IF('7.MESTO,ČAS,NAČIN VZORČENJA'!K18=\"\",\"datum\",'7.MESTO,ČAS,NAČIN VZORČENJA'!K18)","v":"datum"},{"$f":"IF('7.MESTO,ČAS,NAČIN VZORČENJA'!L18=\"\",\"datum\",'7.MESTO,ČAS,NAČIN VZORČENJA'!L18)","v":"datum"},{"$f":"IF('7.MESTO,ČAS,NAČIN VZORČENJA'!M18=\"\",\"datum\",'7.MESTO,ČAS,NAČIN VZORČENJA'!M18)","v":"datum"},{"$f":"IF('7.MESTO,ČAS,NAČIN VZORČENJA'!N18=\"\",\"datum\",'7.MESTO,ČAS,NAČIN VZORČENJA'!N18)","v":"datum"},{"$f":"IF('7.MESTO,ČAS,NAČIN VZORČENJA'!O18=\"\",\"datum\",'7.MESTO,ČAS,NAČIN VZORČENJA'!O18)","v":"datum"},{"$f":"IF('7.MESTO,ČAS,NAČIN VZORČENJA'!P18=\"\",\"datum\",'7.MESTO,ČAS,NAČIN VZORČENJA'!P18)","v":"datum"},{"$f":"IF('7.MESTO,ČAS,NAČIN VZORČENJA'!Q18=\"\",\"datum\",'7.MESTO,ČAS,NAČIN VZORČENJA'!Q18)","v":"datum"},{"$f":"IF('7.MESTO,ČAS,NAČIN VZORČENJA'!R18=\"\",\"datum\",'7.MESTO,ČAS,NAČIN VZORČENJA'!R18)","v":"datum"}]
[null,1010,"Temperatura zraka","°C"]
[null,1020,"Temperatura  vode ","°C"]
[null,1060,"pH vrednost","/"]
["9.10.",1070,"Električna prevodnost (°C)","uS/cm"]
[null,1100,"Redoks potencial","mV"]
[null,1080,"Vsebnost kisika","mg/l O2"]
[null,1090,"Nasičenost s kisikom","%"]
[null,1111,"Motnost","NTU"]
["9.11.",1303,"Prehodnost vrtine ob vzorčenju","m"]
["9.12.",1302,"Globina do podzemne vode","m"]
[]
["9.13.",null,"Rezultati osnovnih parametrov:",null,{"$f":"$D$4","v":"merilno mesto #"},null,null,null,{"$f":"$H$4","v":"merilno mesto #"},null,null,null,{"$f":"$L$4","v":"merilno mesto #"},null,null,null,{"$f":"$P$4","v":"merilno mesto #"},null,null,null,"pobarvaj me III"]
[null,"Šifra parametra:","PARAMETER:","Enota /Izražen kot",{"$f":"E24","v":"datum"},{"$f":"F24","v":"datum"},"datum","datum","datum","datum","datum","datum","datum","datum","datum","datum","datum","datum","datum","datum"]
[null,1029,"Barva","m-1"]
[null,2100,"TOC","mg/l C"]
[null,8250,"AOX","ug/l Cl"]
[null,2140,"Amonij","mg/l NH4"]
[null,2270,"Natrij","mg/l Na"]
[null,2280,"Kalij","mg/l K"]
[null,2250,"Kalcij","mg/l Ca"]
[null,2260,"Magnezij","mg/l Mg"]
[null,2300,"Železo","mg/l Fe"]
[null,2310,"Hidrogenkarbonati","mg/l HCO3"]
[null,2160,"Nitrati","mg/l NO3"]
[null,2170,"Sulfati","mg/l SO4"]
[null,2180,"Kloridi","mg/l Cl"]
[null,2230,"Ortofosfati","mg/l PO4"]
[null,3010,"Bor","mg/l B"]
[]
["9.14.","Rezultati indikativnih parametrov:",null,null,{"$f":"$D$4","v":"merilno mesto #"},null,null,null,{"$f":"$H$4","v":"merilno mesto #"},null,null,null,{"$f":"$L$4","v":"merilno mesto #"},null,null,null,{"$f":"$P$4","v":"merilno mesto #"},null,null,null,"pobarvaj me IV"]
[null,"Šifra parametra:","PARAMETER:","Enota/Izražen kot ",{"$f":"E24","v":"datum"},{"$f":"F24","v":"datum"},"datum","datum","datum","datum","datum","datum","datum","datum","datum","datum","datum","datum","datum","datum"]
[null,2150,"Nitriti","mg/l NO2"]
[null,2210,"Fluoridi","mg/l F"]
[null,3060,"Cianidi","ug/l CN"]
[null,2330,"Sulfidi","mg/l S"]
[null,null,"Kovine"]
[null,4010,"Aluminij","ug/l Al"]
[null,4020,"Antimon","ug/l Sb"]
[null,4030,"Arzen","ug/l As"]
[null,4040,"Baker","ug/l Cu"]
[null,4070,"Barij","ug/l Ba"]
[null,4080,"Berilij","ug/l Be"]
[null,4090,"Cink","ug/l Zn"]
[null,4120,"Kadmij","ug/l Cd"]
[null,4150,"Kobalt","ug/l Co"]
[null,4160,"Kositer","ug/l Sn"]
[null,4190,"Krom (skupno)","ug/l Cr"]
[null,4180,"Krom (6+)","ug/l Cr6+"]
[null,2290,"Mangan","ug/l Mn"]
[null,4220,"Molibden","ug/l Mo"]
[null,4230,"Nikelj","ug/l Ni"]
[null,4260,"Selen","ug/l Se"]
[null,4270,"Srebro","ug/l Ag"]
[null,4290,"Svinec","ug/l Pb"]
[null,4495,"Talij","ug/l Tl"]
[null,4370,"Titan","ug/l Ti"]
[null,4500,"Telur","ug/l Te"]
[null,4330,"Vanadij","ug/l V"]
[null,4340,"Živi srebro","ug/l Hg"]
[null,3070,"Mineralna olja","ug/l"]
[null,5010,"Fenolne snovi","ug/l"]
[null,8820,"Epiklorhidrin","ug/l"]
[null,8185,"Lahkohlapni klorirani ogljikovodiki (LKCH) - vsota","ug/l Cl"]
[null,8070,"Diklorometan ","ug/l"]
[null,8060,"Tetraklorometan ","ug/l"]
[null,8010,"Kloroform ","ug/l"]
[null,8140,"1,1,1-trikloroetan","ug/l"]
[null,8090,"1,2- Dikloroetan","ug/l"]
[null,8110,"cis-1,2 - Dikloroeten","ug/l"]
[null,8130,"Trikloroeten","ug/l"]
[null,8120,"Tetrakloroeten","ug/l"]
[null,7600,"Lahkohlapni aromatski ogljikovodiki - BTX - vsota","ug/l"]
[null,8190,"Benzen","ug/l"]
[null,8210,"Ksilen (vsota o-, p-, m-)","ug/l"]
[null,8200,"Toulen","ug/l"]
[null,8430,"Etil benzen (vsota)","ug/l"]
[null,3080,"Poliklorirani bifenili - PCB - vsota","ug/l"]
[null,3081,"PCB-28","ug/l"]
[null,3082,"PCB-52","ug/l"]
[null,3083,"PCB-101","ug/l"]
[null,3085,"PCB-138","ug/l"]
[null,3086,"PCB-153","ug/l"]
[null,3087,"PCB-180","ug/l"]
[null,3079,"PCB-194","ug/l"]
[null,7180,"Policiklični aromatski ogljikovodiki - PAH - vsota","ug/l"]
[null,7070,"fluoranten","ug/l"]
[null,7110,"benzo(b)fluoranten","ug/l"]
[null,7120,"benzo(k)fluoranten","ug/l"]
[null,7130,"benzo(a)piren","ug/l"]
[null,7160,"indeno(1,2,3-cd)piren","ug/l"]
[null,7140,"benzo(ghi)perilen","ug/l"]
[null,6990,"Pesticidi - vsota","ug/l"]
[null,6010,"Alaklor","ug/l"]
[null,6280,"Terbutilazin","ug/l"]
[null,6520,"Dimetenamid","ug/l"]
[null,6341,"Klortoluron","ug/l"]
[null,6020,"Metolaklor","ug/l"]
[null,6210,"Atrazin","ug/l"]
[null,6220,"Desetil - atrazin","ug/l"]
[null,6230,"Desizopropil - atrazin","ug/l"]
[null,6240,"Simazin","ug/l"]
[null,6260,"Promterin","ug/l"]
[null,6250,"Propazin","ug/l"]
[]
["9.15.","Rezultati dodatnih parametrov:",null,null,{"$f":"$D$4","v":"merilno mesto #"},null,null,null,{"$f":"$H$4","v":"merilno mesto #"},null,null,null,{"$f":"$L$4","v":"merilno mesto #"},null,null,null,{"$f":"$P$4","v":"merilno mesto #"},null,null,null,"pobarvaj me V"]
[null,"Šifra parametra:","PARAMETER:","Enota/Izražen kot",{"$f":"E24","v":"datum"},{"$f":"F24","v":"datum"},"datum","datum","datum","datum","datum","datum","datum","datum","datum","datum","datum","datum","datum","datum"]
[]
[]
["9.16.","Rezultati Identifikacije organskih spojin:",null,{"$f":"$D$4","v":"merilno mesto #"},null,null,null,{"$f":"$H$4","v":"merilno mesto #"},null,null,null,{"$f":"$L$4","v":"merilno mesto #"},null,null,null,{"$f":"$P$4","v":"merilno mesto #"},null,null,null,"pobarvaj me VI"]
[null,"PARAMETER:",null,{"$f":"E24","v":"datum"},{"$f":"F24","v":"datum"},"datum","datum","datum","datum","datum","datum","datum","datum","datum","datum","datum","datum","datum","datum"]
[]
[]
[null,"prva"]
[]
[]
["9.17.","Vstavi sken identifikacije organskih onesnaževal (pdf)"]
[]
[]
[]
["9.18.","Opombe:"]

{"sheet":"10.METODE,OPREMA","index":10,"n_rows":108,"n_cols":9,"rows_kept":108,"cut":false,"hidden":false,"merged":[[108,1,112,3],[107,1,107,3],[0,1,0,2]]}
["10.","UPORABLJENE MERILNE METODE IN MERILNA OPREMA"]
[]
["10.1.",null,"PARAMETER","Enota/Izražen kot ","METODA","MERILNA OPREMA","Podizvajalec","Meja določljivosti (LOQ) merilne metode","Merilna negotovost (%) merilne metode"]
[null,"Šifra parametra:","Terenski parametri:"]
[null,1010,"Temperatura zraka"]
[null,1020,"Temperatura  vode "]
[null,1060,"pH vrednost"]
[null,1070,"Električna prevodnost (°C)"]
[null,1100,"Redoks potencial"]
[null,1080,"Vsebnost kisika"]
[null,1090,"Nasičenost s kisikom"]
[null,1111,"Motnost"]
[null,null,"Osnovni parametri:"]
[null,1029,"Barva"]
[null,2100,"TOC"]
[null,8250,"AOX"]
[null,2140,"Amonij"]
[null,2270,"Natrij"]
[null,2280,"Kalij"]
[null,2250,"Kalcij"]
[null,2260,"Magnezij"]
[null,2300,"Železo"]
[null,2310,"Hidrogenkarbonati"]
[null,2160,"Nitrati"]
[null,2170,"Sulfati"]
[null,2180,"Kloridi"]
[null,2230,"Ortofosfati"]
[null,3010,"Bor"]
[null,null,"Indikativni parametri:"]
[null,2150,"Nitriti","mg/l NO2"]
[null,2210,"Fluoridi","mg/l F"]
[null,3060,"Cianidi","ug/l CN"]
[null,2330,"Sulfidi","mg/l S"]
[null,null,"Kovine"]
[null,4010,"Aluminij","ug/l Al"]
[null,4020,"Antimon","ug/l Sb"]
[null,4030,"Arzen","ug/l As"]
[null,4040,"Baker","ug/l Cu"]
[null,4070,"Barij","ug/l Ba"]
[null,4080,"Berilij","ug/l Be"]
[null,4090,"Cink","ug/l Zn"]
[null,4120,"Kadmij","ug/l Cd"]
[null,4150,"Kobalt","ug/l Co"]
[null,4160,"Kositer","ug/l Sn"]
[null,4190,"Krom (skupno)","ug/l Cr"]
[null,4180,"Krom (6+)","ug/l Cr6+"]
[null,2290,"Mangan","ug/l Mn"]
[null,4220,"Molibden","ug/l Mo"]
[null,4230,"Nikelj","ug/l Ni"]
[null,4260,"Selen","ug/l Se"]
[null,4270,"Srebro","ug/l Ag"]
[null,4290,"Svinec","ug/l Pb"]
[null,4495,"Talij","ug/l Tl"]
[null,4370,"Titan","ug/l Ti"]
[null,4500,"Telur","ug/l Te"]
[null,4330,"Vanadij","ug/l V"]
[null,4340,"Živi srebro","ug/l Hg"]
[null,3070,"Mineralna olja","ug/l"]
[null,5010,"Fenolne snovi","ug/l"]
[null,8820,"Epiklorhidrin","ug/l"]
[null,8185,"Lahkohlapni klorirani ogljikovodiki (LKCH) - vsota","ug/l Cl"]
[null,8070,"Diklorometan ","ug/l"]
[null,8060,"Tetraklorometan ","ug/l"]
[null,8010,"Kloroform ","ug/l"]
[null,8140,"1,1,1-trikloroetan","ug/l"]
[null,8090,"1,2- Dikloroetan","ug/l"]
[null,8110,"cis-1,2 - Dikloroeten","ug/l"]
[null,8130,"Trikloroeten","ug/l"]
[null,8120,"Tetrakloroeten","ug/l"]
[null,7600,"Lahkohlapni aromatski ogljikovodiki - BTX - vsota","ug/l"]
[null,8190,"Benzen","ug/l"]
[null,8210,"Ksilen (vsota o-, p-, m-)","ug/l"]
[null,8200,"Toulen","ug/l"]
[null,8430,"Etil benzen (vsota)","ug/l"]
[null,3080,"Poliklorirani bifenili - PCB - vsota","ug/l"]
[null,3081,"PCB-28","ug/l"]
[null,3082,"PCB-52","ug/l"]
[null,3083,"PCB-101","ug/l"]
[null,3085,"PCB-138","ug/l"]
[null,3086,"PCB-153","ug/l"]
[null,3087,"PCB-180","ug/l"]
[null,3079,"PCB-194","ug/l"]
[null,7180,"Policiklični aromatski ogljikovodiki - PAH - vsota","ug/l"]
[null,7070,"fluoranten","ug/l"]
[null,7110,"benzo(b)fluoranten","ug/l"]
[null,7120,"benzo(k)fluoranten","ug/l"]
[null,7130,"benzo(a)piren","ug/l"]
[null,7160,"indeno(1,2,3-cd)piren","ug/l"]
[null,7140,"benzo(ghi)perilen","ug/l"]
[null,6990,"Pesticidi - vsota","ug/l"]
[null,6010,"Alaklor","ug/l"]
[null,6280,"Terbutilazin","ug/l"]
[null,6520,"Dimetenamid","ug/l"]
[null,6341,"Klortoluron","ug/l"]
[null,6020,"Metolaklor","ug/l"]
[null,6210,"Atrazin","ug/l"]
[null,6220,"Desetil - atrazin","ug/l"]
[null,6230,"Desizopropil - atrazin","ug/l"]
[null,6240,"Simazin","ug/l"]
[null,6260,"Promterin","ug/l"]
[null,6250,"Propazin","ug/l"]
[]
[null,"Dodatni parametri:"]
[]
[null,"Parameter:"]
[null,"Identifikacija organskih spojin"]
[]
["10.2.","Opomba:"]

{"sheet":"11.OPOZORILNE SPR","index":11,"n_rows":37,"n_cols":11,"rows_kept":37,"cut":false,"hidden":false,"merged":[[5,5,6,5],[29,1,29,2],[0,1,0,4],[5,6,5,9],[36,1,36,4],[6,6,6,9],[0,5,3,5],[37,0,43,0],[37,1,43,4],[5,1,6,1],[5,2,6,2],[5,3,6,3],[5,4,6,4]]}
["11.","IZRAČUN OPOZORILNIH SPREMEMB V PODZEMNI VODI",null,null,null,"Najprej je potrebno dodati gorvodno, nato dolvodno in nazadnje šele vrstice!"]
[null,null,null,"GORVODNO","DOLVODNO"]
[]
["11.1.","METODA ZA IZRAČUN OPOZORILNIH SPEMEMB","100 X (CN1 - CN2) / CN2"]
[null,null,null,null,null,null,"pobarvaj"]
["11.2.","Parametri","Enota","Opozorilna sprememba A (%)","Opozorilna sprememba B (%)","Gorvodno merilno\nmesto #","merilno mesto #",null,null,null,"pobarvaj me"]
[null,null,null,null,null,null,"IS (%)"]
["11.3.","Osnovni parametri",null,null,null,"povprečna vrednost\n(od - do)","datum","datum","datum","datum"]
[null,"Celotni organski ogljik (TOC)","mg/l C"]
[null,"Adsorbljivi organski halogeni (AOX)","ug/l Cl"]
[null,"Amonij","mg/l NH4"]
[null,"Natrij","mg/l Na"]
[null,"Kalij","mg/l K"]
[null,"Kalcij","mg/l Ca"]
[null,"Magnezij","mg/l Mg"]
[null,"Železo","mg/l Fe"]
[null,"Hidrogenkarbonati","mg/l HCO3"]
[null,"Nitrati","mg/l NO3"]
[null,"Sulfati","mg/l SO4"]
[null,"Kloridi","mg/l Cl"]
[null,"Ortofosfati","mg/l PO4"]
[null,"Bor","mg/l B"]
["11.4.","Indikativni parametri"]
[]
[]
[]
[null,"prva"]
[]
[]
["11.5.","Ostali parametri"]
[]
[]
[]
[null,"druga"]
[]
[]
["11.6.","Opombe:"]

{"sheet":"12.VREDNOTENJE OS","index":12,"n_rows":35,"n_cols":6,"rows_kept":35,"cut":false,"hidden":false,"merged":[[0,1,0,3],[35,1,38,3],[34,1,34,3],[3,0,9,0],[10,0,16,0],[17,0,23,0],[24,0,30,0]]}
["12.","VREDNOTENJE SPREMEMB VSEBNOSTI ONESNAŽEVAL V PODZEMNI VODI GLEDE NA OPOZORILNE SPREMEMBE"]
[]
["12.1.","PARAMETER Z DOSEŽENO ALI PRESEŽENO OPOZORILNO SPREMEMBO","dolvodno merilno mesto","dosežene ali presežene vrednosti glede na celotno obdobje monitoringa","trend koncentracije parametra glede na celotno opazovalno obdobje (+/-)"]
["Vnesi\nobdobje",null,null,null,null,"prva"]
[]
[]
[]
[]
[]
[]
["Vnesi\nobdobje",null,null,null,null,"druga"]
[]
[]
[]
[]
[]
[]
["Vnesi\nobdobje",null,null,null,null,"tretja"]
[]
[]
[]
[]
[]
[]
["Vnesi\nobdobje",null,null,null,null,"cetrta"]
[]
[]
[]
[]
[]
[]
[]
[]
[]
["12.2.","Preseženi standardi kakovosti in mejne vrednosti za pitno vodo:"]

{"sheet":"13.UGOTOVITVE VPLIV","index":13,"n_rows":5,"n_cols":2,"rows_kept":5,"cut":false,"hidden":false,"merged":[[4,1,4,2],[5,1,35,2],[2,1,2,2]]}
["13.","UGOTOVITVE O VPLIVU VIRA ONESNAŽEVANJA NA KAKOVOST PODZEMNE VODE"]
[]
["13.1.","VPLIV ODLAGALIŠČA NA STANJE PODZEMNE VODE"]
[]
["13.2.","Ocena vpliva odlagališča:"]

{"sheet":"14.PREDLOGI","index":14,"n_rows":21,"n_cols":2,"rows_kept":21,"cut":false,"hidden":false,"merged":[[2,1,2,2],[4,1,19,2],[21,1,36,2],[0,1,0,2],[3,1,3,2],[20,1,20,2]]}
["14.","PREDLOGI ZA IZVEDBO OBRATOVALNEGA MONITORINGA V PRIHODNJEM LETU"]
[]
["14.1.","Priporočila oz. opombe:"]
[null,"HIDROGEOLOŠKI DEL: "]
[]
[]
[]
[]
[]
[]
[]
[]
[]
[]
[]
[]
[]
[]
[]
[]
[null,"KEMIJSKI DEL: "]

{"sheet":"15. UKREPI","index":15,"n_rows":11,"n_cols":2,"rows_kept":11,"cut":false,"hidden":false,"merged":[[10,1,10,4],[11,1,17,4]]}
["15.","IZVEDENI UKREPI V TEKOČEM LETU OBRATOVALNEGA MONITORINGA"]
["15.1.","Vsebina"]
[null,"Primerjalna analiza osnovnih in indikativnih parametrov s preseženo opozorilno spremembo in onesnaževal, ki prispevajo k tveganju, da vodno telo podzemne vode ne dosega dobrega kemijskega stanja. (DA/NE)"]
[null,"Pregled sistema za odvajanje izcednih vod iz dna telesa odlagališča. (DA/NE)"]
[null,"Pregled sistema za odvajanje padavinskih vod izpod prekrivke odlagališča ter sistema za preprečevanje vdora zalednih vod v telo odlagališča. (DA/NE)"]
[null,"Pregled stabilnosti telesa odlagališča, vključno z dnom odlagališča, obrobnimi in opornimi nasipi ter drugimi tehničnimi konstrukcijami za zagotavljanje stabilnosti telesa odlagališča ter prekrivko odlagališča. (DA/NE)"]
[null,"Izdelava ter obseg in vsebina potrebnih strokovnih podlag. (DA/NE)"]
[null,"Načrtovanje dodatnih opazovalnih vrtin na širšem območju vodnega telesa podzemne vode zaradi ocenjevanja posledic izliva onesnaževal na kemijsko stanje podzemne vode. (DA/NE)"]
[null,"Izhodišče za izdelavo ocene količine izliva onesnaževal v podzemno vodo. (DA/NE)"]
[]
["15.2.","Podrobnejši opis izvedenih ukrepov:"]

{"sheet":"16. POOBLASTILO","index":16,"n_rows":1,"n_cols":2,"rows_kept":1,"cut":false,"hidden":false,"merged":[[0,1,0,4]]}
["16.","POOBLASTILO"]

{"sheet":"17. PRILOGE","index":17,"n_rows":3,"n_cols":2,"rows_kept":3,"cut":false,"hidden":false,"merged":[[0,1,0,4],[3,1,42,16]]}
["17.","PRILOGE"]
[]
[null,"Opombe:"]

{"sheet":"Seznami","index":18,"n_rows":541,"n_cols":49,"rows_kept":541,"cut":false,"hidden":true,"merged":[[0,5,0,12],[0,2,0,3],[3,5,3,15],[6,5,6,16],[9,5,9,8],[43,5,43,8],[44,5,44,8],[30,25,30,28],[24,32,24,43],[25,32,25,43],[26,32,26,43],[27,32,27,43],[24,10,24,13],[24,15,24,18],[24,20,24,23],[24,25,24,28],[24,30,27,30],[24,5,24,8],[43,12,44,12],[43,10,44,10],[43,11,44,11]]}
["DA/NE",null,"Indikativni parametri ",null,null,"5.VZDRŽ.OBJEKTOV",null,null,null,null,null,null,null,null,null,null,null,null,null,null,null,null,null,null,null,null,null,null,null,null,null,null,null,null,null,null,null,null,null,null,null,null,null,null,null,"SIF_PAR","OZNAKA_PARAMETRA","MERSKA_ENOTA","SIF_PAR"]
["DA",null,"Nitriti","mg/l NO2",null,null,null,null,null,null,null,null,null,null,null,null,null,null,null,null,null,null,null,null,null,null,null,null,null,null,null,null,null,null,null,null,null,null,null,null,null,null,null,null,null,2425,"1,1,1,2-tetrakloroetan","µg/l",2425]
["NE",null,"Fluoridi","mg/l F",null,null,null,null,null,null,null,null,null,null,null,null,null,null,null,null,null,null,null,null,null,null,null,null,null,null,null,null,null,null,null,null,null,null,null,null,null,null,null,null,null,8160,"1,1,2,2-Tetrakloroetan","µg/l",8160]
[null,null,"Cianidi","ug/l CN",null,"6.MERITVE,INTERPRETACIJA HG.",null,null,null,null,null,null,null,null,null,null,null,null,null,null,null,null,null,null,null,null,null,null,null,null,null,null,null,null,null,null,null,null,null,null,null,null,null,null,null,8150,"1,1,2-Trikloroetan","µg/l",8150]
[null,null,"Sulfidi","mg/l S",null,null,null,null,null,null,null,null,null,null,null,null,null,null,null,null,null,null,null,null,null,null,null,null,null,null,null,null,null,null,null,null,null,null,null,null,null,null,null,null,null,8080,"1,1-Dikloroetan","µg/l",8080]
[null,null,"Kovine",null,null,null,null,null,null,null,null,null,null,null,null,null,null,null,null,null,null,null,null,null,null,null,null,null,null,null,null,null,null,null,null,null,null,null,null,null,null,null,null,null,null,8100,"1,1-Dikloroeten","µg/l",8100]
[null,null,"Aluminij","ug/l Al",null,"7.MESTO,ČAS,NAČIN VZORČENJA",null,null,null,null,null,null,null,null,null,null,null,null,null,null,null,null,null,null,null,null,null,null,null,null,null,null,null,null,null,null,null,null,null,null,null,null,null,null,null,6163,"1,2,3-Triklorobenzen","µg/l",6163]
[null,null,"Antimon","ug/l Sb",null,null,null,null,null,null,null,null,null,null,null,null,null,null,null,null,null,null,null,null,null,null,null,null,null,null,null,null,null,null,null,null,null,null,null,null,null,null,null,null,null,6166,"1,2,3-Triklorobenzen sed.","mg/kg",6166]
[null,null,"Arzen","ug/l As",null,null,null,null,null,null,null,null,null,null,null,null,null,null,null,null,null,null,null,null,null,null,null,null,null,null,null,null,null,null,null,null,null,null,null,null,null,null,null,null,null,8435,"1,2,4 Trimerilbenzen","µg/l",8435]
[null,null,"Baker","ug/l Cu",null,"merilno mesto #",null,null,null,null,null,null,null,null,null,null,null,null,null,null,null,null,null,null,null,null,null,null,null,null,null,null,null,null,null,null,null,null,null,null,null,null,null,null,null,6164,"1,2,4-Triklorobenzen","µg/l",6164]
[null,null,"Barij","ug/l Ba",null,null,null,null,null,null,null,null,null,null,null,null,null,null,null,null,null,null,null,null,null,null,null,null,null,null,null,null,null,null,null,null,null,null,null,null,null,null,null,null,null,6167,"1,2,4-Triklorobenzen sed.","mg/kg",6167]
[null,null,"Berilij","ug/l Be",null,null,null,null,null,null,null,null,null,null,null,null,null,null,null,null,null,null,null,null,null,null,null,null,null,null,null,null,null,null,null,null,null,null,null,null,null,null,null,null,null,1570,"1,2-Dietoksietan","mg/l",1570]
[null,null,"Cink","ug/l Zn",null,null,null,null,null,null,null,null,null,null,null,null,null,null,null,null,null,null,null,null,null,null,null,null,null,null,null,null,null,null,null,null,null,null,null,null,null,null,null,null,null,349,"1,2-diklorobenzen","µg/l",349]
[null,null,"Kadmij","ug/l Cd",null,null,null,null,null,null,null,null,null,null,null,null,null,null,null,null,null,null,null,null,null,null,null,null,null,null,null,null,null,null,null,null,null,null,null,null,null,null,null,null,null,1572,"1,2-Propandiol","mg/l",1572]
[null,null,"Kobalt","ug/l Co",null,null,null,null,null,null,null,null,null,null,null,null,null,null,null,null,null,null,null,null,null,null,null,null,null,null,null,null,null,null,null,null,null,null,null,null,null,null,null,null,null,6165,"1,3,5-Triklorobenzen","µg/l",6165]
[null,null,"Kositer","ug/l Sn",null,null,null,null,null,null,null,null,null,null,null,null,null,null,null,null,null,null,null,null,null,null,null,null,null,null,null,null,null,null,null,null,null,null,null,null,null,null,null,null,null,6168,"1,3,5-Triklorobenzen sed.","mg/kg",6168]
[null,null,"Krom (skupno)","ug/l Cr",null,null,null,null,null,null,null,null,null,null,null,null,null,null,null,null,null,null,null,null,null,null,null,null,null,null,null,null,null,null,null,null,null,null,null,null,null,null,null,null,null,353,"1,3-diklorobenzen","µg/l",353]
[null,null,"Krom (6+)","ug/l Cr6+",null,"9.PREDČRP. REZULTATI PARAM.",null,null,null,null,null,null,null,null,null,null,null,null,null,null,null,null,null,null,null,null,null,null,null,null,null,null,null,null,null,null,null,null,null,null,null,null,null,null,null,355,"1,4-diklorobenzen","µg/l",355]
[null,null,"Mangan","ug/l Mn",null,null,null,null,null,null,null,null,null,null,null,null,null,null,null,null,null,null,null,null,"pobarvaj me",null,null,null,null,null,null,null,null,null,null,null,null,null,null,null,null,null,null,null,null,1575,"1,4-dioksan","mg/l",1575]
[null,null,"Molibden","ug/l Mo",null,null,null,null,null,null,null,null,null,null,null,null,null,null,null,null,null,null,null,null,null,null,null,null,null,null,null,null,null,null,null,null,null,null,null,null,null,null,null,null,null,1439,"1-Acetoksi-2-metoksietan","mg/l",1439]
[null,null,"Nikelj","ug/l Ni",null,"10.METODE,OPREMA",null,null,null,null,null,null,null,null,null,null,null,null,null,null,null,null,null,null,null,null,null,null,null,null,null,null,null,null,null,null,null,null,null,null,null,null,null,null,null,1579,"1-butanol","mg/l",1579]
[null,null,"Selen","ug/l Se",null,null,null,null,null,null,null,null,null,null,null,null,null,null,null,null,null,null,null,null,null,null,null,null,null,null,null,null,null,null,null,null,null,null,null,null,null,null,null,null,null,1588,"1-propanol","mg/l",1588]
[null,null,"Srebro","ug/l Ag",null,null,null,null,null,null,null,null,null,null,null,null,null,null,null,null,null,null,null,null,null,null,null,null,null,null,null,null,null,null,null,null,null,null,null,null,null,null,null,null,null,1440,"2-(2-Butoksietoksi)etanol","mg/l",1440]
[null,null,"Svinec","ug/l Pb",null,null,null,null,null,null,null,null,null,null,null,null,null,null,null,null,null,null,null,null,null,null,null,null,null,null,null,null,null,null,null,null,null,null,null,null,null,null,null,null,null,5476,"2-(2-etoksietoksi)etanol","mg/l",5476]
[null,null,"Talij","ug/l Tl",null,null,null,null,null,null,null,null,null,null,null,null,null,null,null,null,null,null,null,null,null,null,null,null,null,null,null,{"$f":"$D$24","v":"ug/l Pb"},null,null,null,null,null,null,null,null,null,null,null,null,null,3382,"2,2',4,4',5,5'-HexaBDE","µg/l",3382]
[null,null,"Titan","ug/l Ti",null,null,null,null,null,null,"vnesi datum","vnesi datum","vnesi datum","vnesi datum",null,"vnesi datum","vnesi datum","vnesi datum","vnesi datum",null,"vnesi datum","vnesi datum","vnesi datum","vnesi datum",null,"vnesi datum","vnesi datum","vnesi datum","vnesi datum",null,null,{"$f":"$E$24","v":0},null,null,null,null,null,null,null,null,null,null,null,null,null,3381,"2,2',4,4',5,6'-HexaBDE","µg/l",3381]
[null,null,"Telur","ug/l Te",null,null,null,null,null,null,null,null,null,null,null,null,null,null,null,null,null,null,null,null,null,null,null,null,null,null,null,{"$f":"$F$24","v":0},null,null,null,null,null,null,null,null,null,null,null,null,null,3372,"2,2',4,4',5-PentaBDE","µg/l",3372]
[null,null,"Vanadij","ug/l V",null,null,null,null,null,null,null,null,null,null,null,null,null,null,null,null,null,null,null,null,null,null,null,null,null,null,null,{"$f":"$G$24","v":0},null,null,null,null,null,null,null,null,null,null,null,null,null,3370,"2,2',4,4',6-PentaBDE","µg/l",3370]
[null,null,"Živo srebro","ug/l Hg",null,null,null,null,null,null,null,null,null,null,null,null,null,null,null,null,null,null,null,null,null,null,null,null,null,null,null,null,null,null,null,null,null,null,null,null,null,null,null,null,null,3363,"2,2',4,4'-TetraBDE","µg/l",3363]
[null,null,"Mineralna olja","ug/l",null,null,null,null,null,null,null,null,null,null,null,null,null,null,null,null,null,null,null,null,null,null,null,null,null,null,null,null,null,null,null,null,null,null,null,null,null,null,null,null,null,3355,"2,4,4'-TriBDE","µg/l",3355]
[null,null,"Fenolne snovi","ug/l",null,null,null,null,null,null,null,null,null,null,null,null,null,null,null,null,null,null,null,null,null,null,null,null,null,null,null,null,null,null,null,null,null,null,null,null,null,null,null,null,null,6390,"2,4,5-T","µg/l",6390]
[null,null,"Epiklorhidrin","ug/l",null,null,null,null,null,null,null,null,null,null,null,null,null,null,null,null,null,null,null,null,null,"vnesi datum","vnesi datum","vnesi datum","vnesi datum",null,null,null,null,null,null,null,null,null,null,null,null,null,null,null,null,5130,"2,4,6-Triklorofenol","µg/l",5130]
[null,null,"Lahkohlapni klorirani ogljikovodiki (LKCH) - vsota","ug/l Cl",null,null,null,null,null,null,null,null,null,null,null,null,null,null,null,null,null,null,null,null,null,null,null,null,null,null,null,null,null,null,null,null,null,null,null,null,null,null,null,null,null,5132,"2,4,6-Triklorofenol, sed.","mg/kg",5132]
[null,null,"Diklorometan ","ug/l",null,null,null,null,null,null,null,null,null,null,null,null,null,null,null,null,null,null,null,null,null,null,null,null,null,null,null,null,null,null,null,null,null,null,null,null,null,null,null,null,null,6370,"2,4-D","µg/l",6370]
[null,null,"Tetraklorometan ","ug/l",null,null,null,null,null,null,null,null,null,null,null,null,null,null,null,null,null,null,null,null,null,null,null,null,null,null,null,null,null,null,null,null,null,null,null,null,null,null,null,null,null,6450,"2,4-DB","µg/l",6450]
[null,null,"Kloroform ","ug/l",null,null,null,null,null,null,null,null,null,null,null,null,null,null,null,null,null,null,null,null,null,null,null,null,null,null,null,null,null,null,null,null,null,null,null,null,null,null,null,null,null,5110,"2,4-Diklorofenol","µg/l",5110]
[null,null,"1,1,1-trikloroetan","ug/l",null,null,null,null,null,null,null,null,null,null,null,null,null,null,null,null,null,null,null,null,null,null,null,null,null,null,null,null,null,null,null,null,null,null,null,null,null,null,null,null,null,5112,"2,4-Diklorofenol, sed.","mg/kg",5112]
[null,null,"1,2- Dikloroetan","ug/l",null,null,null,null,null,null,null,null,null,null,null,null,null,null,null,null,null,null,null,null,null,null,null,null,null,null,null,null,null,null,null,null,null,null,null,null,null,null,null,null,null,5070,"2,4-Dimetilfenol","µg/l",5070]
[null,null,"cis-1,2 - Dikloroeten","ug/l",null,null,null,null,null,null,null,null,null,null,null,null,null,null,null,null,null,null,null,null,null,null,null,null,null,null,null,null,null,null,null,null,null,null,null,null,null,null,null,null,null,5072,"2,4-Dimetilfenol, sed.","mg/kg",5072]
[null,null,"Trikloroeten","ug/l",null,null,null,null,null,null,null,null,null,null,null,null,null,null,null,null,null,null,null,null,null,null,null,null,null,null,null,null,null,null,null,null,null,null,null,null,null,null,null,null,null,5140,"2,4-Dinitrofenol","µg/l",5140]
[null,null,"Tetrakloroeten","ug/l",null,null,null,null,null,null,null,null,null,null,null,null,null,null,null,null,null,null,null,null,null,null,null,null,null,null,null,null,null,null,null,null,null,null,null,null,null,null,null,null,null,5142,"2,4-Dinitrofenol, sed.","mg/kg",5142]
[null,null,"Lahkohlapni aromatski ogljikovodiki - BTX - vsota","ug/l",null,null,null,null,null,null,null,null,null,null,null,null,null,null,null,null,null,null,null,null,null,null,null,null,null,null,null,null,null,null,null,null,null,null,null,null,null,null,null,null,null,6380,"2,4-DP","µg/l",6380]
[null,null,"Benzen","ug/l",null,null,null,null,null,null,null,null,null,null,null,null,null,null,null,null,null,null,null,null,null,null,null,null,null,null,null,null,null,null,null,null,null,null,null,null,null,null,null,null,null,6335,"2,6-diklorobenzamid","µg/l",6335]
[null,null,"Ksilen (vsota o-, p-, m-)","ug/l",null,"merilno mesto #",null,null,null,null,"Opozorilna sprememba\nA (%)","Opozorilna sprememba\nB (%)","Gorvodno merilno\nmesto #",null,null,null,null,null,null,null,null,null,null,null,null,null,null,null,null,null,null,null,null,null,null,null,null,null,null,null,null,null,null,null,null,6333,"2,6-diklorobenzamid-sed.","mg/kg",6333]
[null,null,"Toulen","ug/l",null,"IS (%)",null,null,null,null,null,null,null,null,null,null,null,null,null,null,null,null,null,null,null,null,null,null,null,null,null,null,null,null,null,null,null,null,null,null,null,null,null,null,null,1216,"2-butanol","mg/l",1216]
[null,null,"Mezitilen","ug/l",null,"datum","datum","datum","datum",null,null,null,"povprečna vrednost\n(od - do)",null,null,null,null,null,null,null,null,null,null,null,null,null,null,null,null,null,null,null,null,null,null,null,null,null,null,null,null,null,null,null,null,2875,"2-Butoksi etanol","mg/l",2875]
[null,null,"Etil benzen (vsota)","ug/l",null,null,null,null,null,null,null,null,null,null,null,null,null,null,null,null,null,null,null,null,null,null,null,null,null,null,null,null,null,null,null,null,null,null,null,null,null,null,null,null,null,1441,"2-butoksi etilacetat","mg/l",1441]
[null,null,"Poliklorirani bifenili - PCB - vsota","ug/l",null,null,null,null,null,null,null,null,null,null,null,null,null,null,null,null,null,null,null,null,null,null,null,null,null,null,null,null,null,null,null,null,null,null,null,null,null,null,null,null,null,1600,"2-Etoksietanol","mg/l",1600]
[null,null,"PCB-28","ug/l",null,null,null,null,null,null,null,null,null,null,null,null,null,null,null,null,null,null,null,null,null,null,null,null,null,null,null,null,null,null,null,null,null,null,null,null,null,null,null,null,null,1442,"2-Etoksietilacetat","mg/l",1442]
[null,null,"PCB-52","ug/l",null,null,null,null,null,null,null,null,null,null,null,null,null,null,null,null,null,null,null,null,null,null,null,null,null,null,null,null,null,null,null,null,null,null,null,null,null,null,null,null,null,5090,"2-Klorofenol","µg/l",5090]
[null,null,"PCB-101","ug/l",null,null,null,null,null,null,null,null,null,null,null,null,null,null,null,null,null,null,null,null,null,null,null,null,null,null,null,null,null,null,null,null,null,null,null,null,null,null,null,null,null,5092,"2-Klorofenol, sed.","mg/kg",5092]
[null,null,"PCB-138","ug/l",null,null,null,null,null,null,null,null,null,null,null,null,null,null,null,null,null,null,null,null,null,null,null,null,null,null,null,null,null,null,null,null,null,null,null,null,null,null,null,null,null,3873,"2-Metil-1-butanol","mg/l",3873]
[null,null,"PCB-153","ug/l",null,null,null,null,null,null,null,null,null,null,null,null,null,null,null,null,null,null,null,null,null,null,null,null,null,null,null,null,null,null,null,null,null,null,null,null,null,null,null,null,null,5160,"2-Metil-4,6-dinitrofenol","µg/l",5160]
[null,null,"PCB-180","ug/l",null,null,null,null,null,null,null,null,null,null,null,null,null,null,null,null,null,null,null,null,null,null,null,null,null,null,null,null,null,null,null,null,null,null,null,null,null,null,null,null,null,5162,"2-Metil-4,6-dinitrofenol, sed.","mg/kg",5162]
[null,null,"PCB-194","ug/l",null,null,null,null,null,null,null,null,null,null,null,null,null,null,null,null,null,null,null,null,null,null,null,null,null,null,null,null,null,null,null,null,null,null,null,null,null,null,null,null,null,5040,"2-Metilfenol","µg/l",5040]
[null,null,"Policiklični aromatski ogljikovodiki - PAH - vsota","ug/l",null,null,null,null,null,null,null,null,null,null,null,null,null,null,null,null,null,null,null,null,null,null,null,null,null,null,null,null,null,null,null,null,null,null,null,null,null,null,null,null,null,5042,"2-Metilfenol, sed.","mg/kg",5042]
[null,null,"fluoranten","ug/l",null,null,null,null,null,null,null,null,null,null,null,null,null,null,null,null,null,null,null,null,null,null,null,null,null,null,null,null,null,null,null,null,null,null,null,null,null,null,null,null,null,5030,"2-Metoksifenol","µg/l",5030]
[null,null,"benzo(b)fluoranten","ug/l",null,null,null,null,null,null,null,null,null,null,null,null,null,null,null,null,null,null,null,null,null,null,null,null,null,null,null,null,null,null,null,null,null,null,null,null,null,null,null,null,null,5032,"2-Metoksifenol, sed.","mg/kg",5032]
[null,null,"benzo(k)fluoranten","ug/l",null,null,null,null,null,null,null,null,null,null,null,null,null,null,null,null,null,null,null,null,null,null,null,null,null,null,null,null,null,null,null,null,null,null,null,null,null,null,null,null,null,5100,"2-Nitrofenol","µg/l",5100]
[null,null,"benzo(a)piren","ug/l",null,null,null,null,null,null,null,null,null,null,null,null,null,null,null,null,null,null,null,null,null,null,null,null,null,null,null,null,null,null,null,null,null,null,null,null,null,null,null,null,null,5102,"2-Nitrofenol, sed.","mg/kg",5102]
[null,null,"indeno(1,2,3-cd)piren","ug/l",null,null,null,null,null,null,null,null,null,null,null,null,null,null,null,null,null,null,null,null,null,null,null,null,null,null,null,null,null,null,null,null,null,null,null,null,null,null,null,null,null,1618,"2-propanol","mg/l",1618]
[null,null,"benzo(ghi)perilen","ug/l",null,null,null,null,null,null,null,null,null,null,null,null,null,null,null,null,null,null,null,null,null,null,null,null,null,null,null,null,null,null,null,null,null,null,null,null,null,null,null,null,null,5080,"3,5-Dimetilfenol","µg/l",5080]
[null,null,"Pesticidi - vsota","ug/l",null,null,null,null,null,null,null,null,null,null,null,null,null,null,null,null,null,null,null,null,null,null,null,null,null,null,null,null,null,null,null,null,null,null,null,null,null,null,null,null,null,5082,"3,5-Dimetilfenol, sed.","mg/kg",5082]
[null,null,"Alaklor","ug/l",null,null,null,null,null,null,null,null,null,null,null,null,null,null,null,null,null,null,null,null,null,null,null,null,null,null,null,null,null,null,null,null,null,null,null,null,null,null,null,null,null,6360,"3-fenil-4-hidroksi-6-kloropiridazin","µg/l",6360]
[null,null,"Terbutilazin","ug/l",null,null,null,null,null,null,null,null,null,null,null,null,null,null,null,null,null,null,null,null,null,null,null,null,null,null,null,null,null,null,null,null,null,null,null,null,null,null,null,null,null,5063,"3-metilfenol","µg/l",5063]
[null,null,"Dimetenamid","ug/l",null,null,null,null,null,null,null,null,null,null,null,null,null,null,null,null,null,null,null,null,null,null,null,null,null,null,null,null,null,null,null,null,null,null,null,null,null,null,null,null,null,5060,"3-Metilfenol+ 4-Metilfenol","µg/l",5060]
[null,null,"Klortoluron","ug/l",null,null,null,null,null,null,null,null,null,null,null,null,null,null,null,null,null,null,null,null,null,null,null,null,null,null,null,null,null,null,null,null,null,null,null,null,null,null,null,null,null,5062,"3-Metilfenol+4-Metilfenol,sed.","mg/kg",5062]
[null,null,"Metolaklor","ug/l",null,null,null,null,null,null,null,null,null,null,null,null,null,null,null,null,null,null,null,null,null,null,null,null,null,null,null,null,null,null,null,null,null,null,null,null,null,null,null,null,null,5120,"4-Kloro-3-metilfenol","µg/l",5120]
[null,null,"Atrazin","ug/l",null,null,null,null,null,null,null,null,null,null,null,null,null,null,null,null,null,null,null,null,null,null,null,null,null,null,null,null,null,null,null,null,null,null,null,null,null,null,null,null,null,5122,"4-Kloro-3-metilfenol, sed.","mg/kg",5122]
[null,null,"Desetil - atrazin","ug/l",null,null,null,null,null,null,null,null,null,null,null,null,null,null,null,null,null,null,null,null,null,null,null,null,null,null,null,null,null,null,null,null,null,null,null,null,null,null,null,null,null,5065,"4-metilfenol","µg/l",5065]
[null,null,"Desizopropil - atrazin","ug/l",null,null,null,null,null,null,null,null,null,null,null,null,null,null,null,null,null,null,null,null,null,null,null,null,null,null,null,null,null,null,null,null,null,null,null,null,null,null,null,null,null,5150,"4-Nitrofenol","µg/l",5150]
[null,null,"Simazin","ug/l",null,null,null,null,null,null,null,null,null,null,null,null,null,null,null,null,null,null,null,null,null,null,null,null,null,null,null,null,null,null,null,null,null,null,null,null,null,null,null,null,null,5152,"4-Nitrofenol, sed.","mg/kg",5152]
[null,null,"Prometrin","ug/l",null,null,null,null,null,null,null,null,null,null,null,null,null,null,null,null,null,null,null,null,null,null,null,null,null,null,null,null,null,null,null,null,null,null,null,null,null,null,null,null,null,6460,"a, b, d HCH","µg/l",6460]
[null,null,"Propazin","ug/l",null,"3.1.","Naziv podizvajalca:",null,null,null,null,null,null,null,null,null,null,null,null,null,null,null,null,null,null,null,null,null,null,null,null,null,null,null,null,null,null,null,null,null,null,null,null,null,null,7030,"Acenaften","µg/l",7030]
[null,null,null,null,null,null,"Odgovorna oseba:",null,null,null,null,null,null,null,null,null,null,null,null,null,null,null,null,null,null,null,null,null,null,null,null,null,null,null,null,null,null,null,null,null,null,null,null,null,null,7032,"Acenaften-sed.","mg/kg",7032]
[null,null,null,null,null,null,null,null,null,null,null,null,null,null,null,null,null,null,null,null,null,null,null,null,null,null,null,null,null,null,null,null,null,null,null,null,null,null,null,null,null,null,null,null,null,7020,"Acenaftilen","µg/l",7020]
[null,null,null,null,null,null,null,null,null,null,null,null,null,null,null,null,null,null,null,null,null,null,null,null,null,null,null,null,null,null,null,null,null,null,null,null,null,null,null,null,null,null,null,null,null,7022,"Acenaftilen-sed.","mg/kg",7022]
[null,null,null,null,null,null,null,null,null,null,null,null,null,null,null,null,null,null,null,null,null,null,null,null,null,null,null,null,null,null,null,null,null,null,null,null,null,null,null,null,null,null,null,null,null,6500,"Acetoklor","µg/l",6500]
[null,null,null,null,null,null,null,null,null,null,null,null,null,null,null,null,null,null,null,null,null,null,null,null,null,null,null,null,null,null,null,null,null,null,null,null,null,null,null,null,null,null,null,null,null,6502,"Acetoklor sed.","mg/kg",6502]
[null,null,null,null,null,null,null,null,null,null,null,null,null,null,null,null,null,null,null,null,null,null,null,null,null,null,null,null,null,null,null,null,null,null,null,null,null,null,null,null,null,null,null,null,null,319,"aceton","mg/l",319]
[null,null,null,null,null,null,null,null,null,null,null,null,null,null,null,null,null,null,null,null,null,null,null,null,null,null,null,null,null,null,null,null,null,null,null,null,null,null,null,null,null,null,null,null,null,8800,"Akrilamid","mg/l",8800]
[null,null,null,null,null,null,null,null,null,null,null,null,null,null,null,null,null,null,null,null,null,null,null,null,null,null,null,null,null,null,null,null,null,null,null,null,null,null,null,null,null,null,null,null,null,6012,"Alaklor sed.","mg/kg",6012]
[null,null,null,null,null,null,null,null,null,null,null,null,null,null,null,null,null,null,null,null,null,null,null,null,null,null,null,null,null,null,null,null,null,null,null,null,null,null,null,null,null,null,null,null,null,6030,"Aldrin","µg/l",6030]
[null,null,null,null,null,null,null,null,null,null,null,null,null,null,null,null,null,null,null,null,null,null,null,null,null,null,null,null,null,null,null,null,null,null,null,null,null,null,null,null,null,null,null,null,null,6032,"Aldrin sed.","mg/kg",6032]
[null,null,null,null,null,null,null,null,null,null,null,null,null,null,null,null,null,null,null,null,null,null,null,null,null,null,null,null,null,null,null,null,null,null,null,null,null,null,null,null,null,null,null,null,null,6122,"alfa - HCH sed.","mg/kg",6122]
[null,null,null,null,null,null,null,null,null,null,null,null,null,null,null,null,null,null,null,null,null,null,null,null,null,null,null,null,null,null,null,null,null,null,null,null,null,null,null,null,null,null,null,null,null,6120,"alfa-HCH","µg/l",6120]
[null,null,null,null,null,null,null,null,null,null,null,null,null,null,null,null,null,null,null,null,null,null,null,null,null,null,null,null,null,null,null,null,null,null,null,null,null,null,null,null,null,null,null,null,null,6307,"Ametrin","µg/l",6307]
[null,null,null,null,null,null,null,null,null,null,null,null,null,null,null,null,null,null,null,null,null,null,null,null,null,null,null,null,null,null,null,null,null,null,null,null,null,null,null,null,null,null,null,null,null,6543,"Amidosulfuron","µg/l",6543]
[null,null,null,null,null,null,null,null,null,null,null,null,null,null,null,null,null,null,null,null,null,null,null,null,null,null,null,null,null,null,null,null,null,null,null,null,null,null,null,null,null,null,null,null,null,2130,"Amoniak (prosti)","mg NH3/l ",2130]
[null,null,null,null,null,null,null,null,null,null,null,null,null,null,null,null,null,null,null,null,null,null,null,null,null,null,null,null,null,null,null,null,null,null,null,null,null,null,null,null,null,null,null,null,null,6207,"Amonij-metil fosforjeva kislina (AMPA)","µg/l",6207]
[null,null,null,null,null,null,null,null,null,null,null,null,null,null,null,null,null,null,null,null,null,null,null,null,null,null,null,null,null,null,null,null,null,null,null,null,null,null,null,null,null,null,null,null,null,3020,"Anionaktivni detergenti","mg TBS/l",3020]
[null,null,null,null,null,null,null,null,null,null,null,null,null,null,null,null,null,null,null,null,null,null,null,null,null,null,null,null,null,null,null,null,null,null,null,null,null,null,null,null,null,null,null,null,null,3021,"Anionaktivni detergenti","mg MBAS/l",3021]
[null,null,null,null,null,null,null,null,null,null,null,null,null,null,null,null,null,null,null,null,null,null,null,null,null,null,null,null,null,null,null,null,null,null,null,null,null,null,null,null,null,null,null,null,null,7060,"Antracen","µg/l",7060]
[null,null,null,null,null,null,null,null,null,null,null,null,null,null,null,null,null,null,null,null,null,null,null,null,null,null,null,null,null,null,null,null,null,null,null,null,null,null,null,null,null,null,null,null,null,7062,"Antracen-sed.","mg/kg",7062]
[null,null,null,null,null,null,null,null,null,null,null,null,null,null,null,null,null,null,null,null,null,null,null,null,null,null,null,null,null,null,null,null,null,null,null,null,null,null,null,null,null,null,null,null,null,6212,"Atrazin-sed.","mg/kg",6212]
[null,null,null,null,null,null,null,null,null,null,null,null,null,null,null,null,null,null,null,null,null,null,null,null,null,null,null,null,null,null,null,null,null,null,null,null,null,null,null,null,null,null,null,null,null,807,"azinfos-etil","µg/l",807]
[null,null,null,null,null,null,null,null,null,null,null,null,null,null,null,null,null,null,null,null,null,null,null,null,null,null,null,null,null,null,null,null,null,null,null,null,null,null,null,null,null,null,null,null,null,808,"azinfos-metil","µg/l",808]
[null,null,null,null,null,null,null,null,null,null,null,null,null,null,null,null,null,null,null,null,null,null,null,null,null,null,null,null,null,null,null,null,null,null,null,null,null,null,null,null,null,null,null,null,null,6620,"Azoksistrobin","µg/l",6620]
[null,null,null,null,null,null,null,null,null,null,null,null,null,null,null,null,null,null,null,null,null,null,null,null,null,null,null,null,null,null,null,null,null,null,null,null,null,null,null,null,null,null,null,null,null,6622,"Azoksistrobin sed.","mg/kg",6622]
[null,null,null,null,null,null,null,null,null,null,null,null,null,null,null,null,null,null,null,null,null,null,null,null,null,null,null,null,null,null,null,null,null,null,null,null,null,null,null,null,null,null,null,null,null,4060,"Baker-sed.","mg/kg",4060]
[null,null,null,null,null,null,null,null,null,null,null,null,null,null,null,null,null,null,null,null,null,null,null,null,null,null,null,null,null,null,null,null,null,null,null,null,null,null,null,null,null,null,null,null,null,1029,"Barva","m-1",1029]
[null,null,null,null,null,null,null,null,null,null,null,null,null,null,null,null,null,null,null,null,null,null,null,null,null,null,null,null,null,null,null,null,null,null,null,null,null,null,null,null,null,null,null,null,null,6531,"Benalaksil","µg/l",6531]
[null,null,null,null,null,null,null,null,null,null,null,null,null,null,null,null,null,null,null,null,null,null,null,null,null,null,null,null,null,null,null,null,null,null,null,null,null,null,null,null,null,null,null,null,null,6510,"Bentazon","µg/l",6510]
[null,null,null,null,null,null,null,null,null,null,null,null,null,null,null,null,null,null,null,null,null,null,null,null,null,null,null,null,null,null,null,null,null,null,null,null,null,null,null,null,null,null,null,null,null,3160,"Benzilbutilftalat","µg/l",3160]
[null,null,null,null,null,null,null,null,null,null,null,null,null,null,null,null,null,null,null,null,null,null,null,null,null,null,null,null,null,null,null,null,null,null,null,null,null,null,null,null,null,null,null,null,null,7090,"Benzo(a)antracen","µg/l",7090]
[null,null,null,null,null,null,null,null,null,null,null,null,null,null,null,null,null,null,null,null,null,null,null,null,null,null,null,null,null,null,null,null,null,null,null,null,null,null,null,null,null,null,null,null,null,7092,"Benzo(a)antracen-sed.","mg/kg",7092]
[null,null,null,null,null,null,null,null,null,null,null,null,null,null,null,null,null,null,null,null,null,null,null,null,null,null,null,null,null,null,null,null,null,null,null,null,null,null,null,null,null,null,null,null,null,7132,"Benzo(a)piren-sed.","mg/kg",7132]
[null,null,null,null,null,null,null,null,null,null,null,null,null,null,null,null,null,null,null,null,null,null,null,null,null,null,null,null,null,null,null,null,null,null,null,null,null,null,null,null,null,null,null,null,null,7112,"Benzo(b)fluoranten-sed.","mg/kg",7112]
[null,null,null,null,null,null,null,null,null,null,null,null,null,null,null,null,null,null,null,null,null,null,null,null,null,null,null,null,null,null,null,null,null,null,null,null,null,null,null,null,null,null,null,null,null,7142,"Benzo(ghi)perilen-sed.","mg/kg",7142]
[null,null,null,null,null,null,null,null,null,null,null,null,null,null,null,null,null,null,null,null,null,null,null,null,null,null,null,null,null,null,null,null,null,null,null,null,null,null,null,null,null,null,null,null,null,7122,"Benzo(k)fluoranten-sed.","mg/kg",7122]
[null,null,null,null,null,null,null,null,null,null,null,null,null,null,null,null,null,null,null,null,null,null,null,null,null,null,null,null,null,null,null,null,null,null,null,null,null,null,null,null,null,null,null,null,null,6132,"beta - HCH sed.","mg/kg",6132]
[null,null,null,null,null,null,null,null,null,null,null,null,null,null,null,null,null,null,null,null,null,null,null,null,null,null,null,null,null,null,null,null,null,null,null,null,null,null,null,null,null,null,null,null,null,6130,"beta-HCH","µg/l",6130]
[null,null,null,null,null,null,null,null,null,null,null,null,null,null,null,null,null,null,null,null,null,null,null,null,null,null,null,null,null,null,null,null,null,null,null,null,null,null,null,null,null,null,null,null,null,12006,"Betaksolol","µg/L",12006]
[null,null,null,null,null,null,null,null,null,null,null,null,null,null,null,null,null,null,null,null,null,null,null,null,null,null,null,null,null,null,null,null,null,null,null,null,null,null,null,null,null,null,null,null,null,12008,"Bezafibrat","µg/L",12008]
[null,null,null,null,null,null,null,null,null,null,null,null,null,null,null,null,null,null,null,null,null,null,null,null,null,null,null,null,null,null,null,null,null,null,null,null,null,null,null,null,null,null,null,null,null,1370,"Biokemijska potreba po kisiku (BPK5)","mg/l",1370]
[null,null,null,null,null,null,null,null,null,null,null,null,null,null,null,null,null,null,null,null,null,null,null,null,null,null,null,null,null,null,null,null,null,null,null,null,null,null,null,null,null,null,null,null,null,3340,"Bisfenol a","µg/l",3340]
[null,null,null,null,null,null,null,null,null,null,null,null,null,null,null,null,null,null,null,null,null,null,null,null,null,null,null,null,null,null,null,null,null,null,null,null,null,null,null,null,null,null,null,null,null,6330,"Bromacil","µg/l",6330]
[null,null,null,null,null,null,null,null,null,null,null,null,null,null,null,null,null,null,null,null,null,null,null,null,null,null,null,null,null,null,null,null,null,null,null,null,null,null,null,null,null,null,null,null,null,8810,"Bromat","µg BrO3/l",8810]
[null,null,null,null,null,null,null,null,null,null,null,null,null,null,null,null,null,null,null,null,null,null,null,null,null,null,null,null,null,null,null,null,null,null,null,null,null,null,null,null,null,null,null,null,null,8030,"Bromdiklorometan","µg/l",8030]
[null,null,null,null,null,null,null,null,null,null,null,null,null,null,null,null,null,null,null,null,null,null,null,null,null,null,null,null,null,null,null,null,null,null,null,null,null,null,null,null,null,null,null,null,null,2190,"Bromidi","mg/l",2190]
[null,null,null,null,null,null,null,null,null,null,null,null,null,null,null,null,null,null,null,null,null,null,null,null,null,null,null,null,null,null,null,null,null,null,null,null,null,null,null,null,null,null,null,null,null,1687,"bromofos-etil","µg/l",1687]
[null,null,null,null,null,null,null,null,null,null,null,null,null,null,null,null,null,null,null,null,null,null,null,null,null,null,null,null,null,null,null,null,null,null,null,null,null,null,null,null,null,null,null,null,null,6336,"Bromoksinil","µg/l",6336]
[null,null,null,null,null,null,null,null,null,null,null,null,null,null,null,null,null,null,null,null,null,null,null,null,null,null,null,null,null,null,null,null,null,null,null,null,null,null,null,null,null,null,null,null,null,6610,"Brompropilat","µg/l",6610]
[null,null,null,null,null,null,null,null,null,null,null,null,null,null,null,null,null,null,null,null,null,null,null,null,null,null,null,null,null,null,null,null,null,null,null,null,null,null,null,null,null,null,null,null,null,6612,"Brompropilat sed.","mg/kg",6612]
[null,null,null,null,null,null,null,null,null,null,null,null,null,null,null,null,null,null,null,null,null,null,null,null,null,null,null,null,null,null,null,null,null,null,null,null,null,null,null,null,null,null,null,null,null,6362,"Buturon","µg/l",6362]
[null,null,null,null,null,null,null,null,null,null,null,null,null,null,null,null,null,null,null,null,null,null,null,null,null,null,null,null,null,null,null,null,null,null,null,null,null,null,null,null,null,null,null,null,null,3300,"C10-13 kloroalkani","µg/l",3300]
[null,null,null,null,null,null,null,null,null,null,null,null,null,null,null,null,null,null,null,null,null,null,null,null,null,null,null,null,null,null,null,null,null,null,null,null,null,null,null,null,null,null,null,null,null,1372,"celotna alkaliteta","mmol/l",1372]
[null,null,null,null,null,null,null,null,null,null,null,null,null,null,null,null,null,null,null,null,null,null,null,null,null,null,null,null,null,null,null,null,null,null,null,null,null,null,null,null,null,null,null,null,null,2405,"celotni dušik","mg/l",2405]
[null,null,null,null,null,null,null,null,null,null,null,null,null,null,null,null,null,null,null,null,null,null,null,null,null,null,null,null,null,null,null,null,null,null,null,null,null,null,null,null,null,null,null,null,null,4480,"Cezij-filt.","µg/L",4480]
[null,null,null,null,null,null,null,null,null,null,null,null,null,null,null,null,null,null,null,null,null,null,null,null,null,null,null,null,null,null,null,null,null,null,null,null,null,null,null,null,null,null,null,null,null,6270,"Cianazin","µg/l",6270]
[null,null,null,null,null,null,null,null,null,null,null,null,null,null,null,null,null,null,null,null,null,null,null,null,null,null,null,null,null,null,null,null,null,null,null,null,null,null,null,null,null,null,null,null,null,6272,"Cianazin sed.","mg/kg",6272]
[null,null,null,null,null,null,null,null,null,null,null,null,null,null,null,null,null,null,null,null,null,null,null,null,null,null,null,null,null,null,null,null,null,null,null,null,null,null,null,null,null,null,null,null,null,3050,"Cianidi (lahko razgr.)","mg CN/l",3050]
[null,null,null,null,null,null,null,null,null,null,null,null,null,null,null,null,null,null,null,null,null,null,null,null,null,null,null,null,null,null,null,null,null,null,null,null,null,null,null,null,null,null,null,null,null,4110,"Cink-sed.","mg/kg",4110]
[null,null,null,null,null,null,null,null,null,null,null,null,null,null,null,null,null,null,null,null,null,null,null,null,null,null,null,null,null,null,null,null,null,null,null,null,null,null,null,null,null,null,null,null,null,835,"ciprodinil","µg/l",835]
[null,null,null,null,null,null,null,null,null,null,null,null,null,null,null,null,null,null,null,null,null,null,null,null,null,null,null,null,null,null,null,null,null,null,null,null,null,null,null,null,null,null,null,null,null,235,"cirkonij","µg/l",235]
[null,null,null,null,null,null,null,null,null,null,null,null,null,null,null,null,null,null,null,null,null,null,null,null,null,null,null,null,null,null,null,null,null,null,null,null,null,null,null,null,null,null,null,null,null,8111,"cis-1,2-Dikloroeten","µg/l",8111]
[null,null,null,null,null,null,null,null,null,null,null,null,null,null,null,null,null,null,null,null,null,null,null,null,null,null,null,null,null,null,null,null,null,null,null,null,null,null,null,null,null,null,null,null,null,6111,"cis-heptaklorepoksid","µg/l",6111]
[null,null,null,null,null,null,null,null,null,null,null,null,null,null,null,null,null,null,null,null,null,null,null,null,null,null,null,null,null,null,null,null,null,null,null,null,null,null,null,null,null,null,null,null,null,6115,"cis-Klordan","µg/l",6115]
[null,null,null,null,null,null,null,null,null,null,null,null,null,null,null,null,null,null,null,null,null,null,null,null,null,null,null,null,null,null,null,null,null,null,null,null,null,null,null,null,null,null,null,null,null,6117,"cis-Klordan sed.","mg/kg",6117]
[null,null,null,null,null,null,null,null,null,null,null,null,null,null,null,null,null,null,null,null,null,null,null,null,null,null,null,null,null,null,null,null,null,null,null,null,null,null,null,null,null,null,null,null,null,9090,"Clostridium perfringens (vključno s sporami)","CFU/100 ml",9090]
[null,null,null,null,null,null,null,null,null,null,null,null,null,null,null,null,null,null,null,null,null,null,null,null,null,null,null,null,null,null,null,null,null,null,null,null,null,null,null,null,null,null,null,null,null,80,"Dan","-",80]
[null,null,null,null,null,null,null,null,null,null,null,null,null,null,null,null,null,null,null,null,null,null,null,null,null,null,null,null,null,null,null,null,null,null,null,null,null,null,null,null,null,null,null,null,null,6650,"Dazomet","µg/l",6650]
[null,null,null,null,null,null,null,null,null,null,null,null,null,null,null,null,null,null,null,null,null,null,null,null,null,null,null,null,null,null,null,null,null,null,null,null,null,null,null,null,null,null,null,null,null,6060,"DDD (o,p)","µg/l",6060]
[null,null,null,null,null,null,null,null,null,null,null,null,null,null,null,null,null,null,null,null,null,null,null,null,null,null,null,null,null,null,null,null,null,null,null,null,null,null,null,null,null,null,null,null,null,6062,"DDD (o,p) sed.","mg/kg",6062]
[null,null,null,null,null,null,null,null,null,null,null,null,null,null,null,null,null,null,null,null,null,null,null,null,null,null,null,null,null,null,null,null,null,null,null,null,null,null,null,null,null,null,null,null,null,6070,"DDD (p,p)","µg/l",6070]
[null,null,null,null,null,null,null,null,null,null,null,null,null,null,null,null,null,null,null,null,null,null,null,null,null,null,null,null,null,null,null,null,null,null,null,null,null,null,null,null,null,null,null,null,null,6072,"DDD (p,p) sed.","mg/kg",6072]
[null,null,null,null,null,null,null,null,null,null,null,null,null,null,null,null,null,null,null,null,null,null,null,null,null,null,null,null,null,null,null,null,null,null,null,null,null,null,null,null,null,null,null,null,null,6052,"DDE (o,p)","µg/l",6052]
[null,null,null,null,null,null,null,null,null,null,null,null,null,null,null,null,null,null,null,null,null,null,null,null,null,null,null,null,null,null,null,null,null,null,null,null,null,null,null,null,null,null,null,null,null,6050,"DDE (p,p)","µg/l",6050]
[null,null,null,null,null,null,null,null,null,null,null,null,null,null,null,null,null,null,null,null,null,null,null,null,null,null,null,null,null,null,null,null,null,null,null,null,null,null,null,null,null,null,null,null,null,6051,"DDE (p,p) sed.","mg/kg",6051]
[null,null,null,null,null,null,null,null,null,null,null,null,null,null,null,null,null,null,null,null,null,null,null,null,null,null,null,null,null,null,null,null,null,null,null,null,null,null,null,null,null,null,null,null,null,6053,"DDE(o,p) sed.","mg/kg",6053]
[null,null,null,null,null,null,null,null,null,null,null,null,null,null,null,null,null,null,null,null,null,null,null,null,null,null,null,null,null,null,null,null,null,null,null,null,null,null,null,null,null,null,null,null,null,6042,"DDT (o,p)","µg/l",6042]
[null,null,null,null,null,null,null,null,null,null,null,null,null,null,null,null,null,null,null,null,null,null,null,null,null,null,null,null,null,null,null,null,null,null,null,null,null,null,null,null,null,null,null,null,null,6040,"DDT (p,p)","µg/l",6040]
[null,null,null,null,null,null,null,null,null,null,null,null,null,null,null,null,null,null,null,null,null,null,null,null,null,null,null,null,null,null,null,null,null,null,null,null,null,null,null,null,null,null,null,null,null,6041,"DDT (p,p) sed.","mg/kg",6041]
[null,null,null,null,null,null,null,null,null,null,null,null,null,null,null,null,null,null,null,null,null,null,null,null,null,null,null,null,null,null,null,null,null,null,null,null,null,null,null,null,null,null,null,null,null,6043,"DDT(o,p) sed.","mg/kg",6043]
[null,null,null,null,null,null,null,null,null,null,null,null,null,null,null,null,null,null,null,null,null,null,null,null,null,null,null,null,null,null,null,null,null,null,null,null,null,null,null,null,null,null,null,null,null,6152,"delta - HCH sed.","mg/kg",6152]
[null,null,null,null,null,null,null,null,null,null,null,null,null,null,null,null,null,null,null,null,null,null,null,null,null,null,null,null,null,null,null,null,null,null,null,null,null,null,null,null,null,null,null,null,null,6150,"delta-HCH","µg/l",6150]
[null,null,null,null,null,null,null,null,null,null,null,null,null,null,null,null,null,null,null,null,null,null,null,null,null,null,null,null,null,null,null,null,null,null,null,null,null,null,null,null,null,null,null,null,null,839,"deltametrin","µg/l",839]
[null,null,null,null,null,null,null,null,null,null,null,null,null,null,null,null,null,null,null,null,null,null,null,null,null,null,null,null,null,null,null,null,null,null,null,null,null,null,null,null,null,null,null,null,null,840,"demeton-S-metil","µg/l",840]
[null,null,null,null,null,null,null,null,null,null,null,null,null,null,null,null,null,null,null,null,null,null,null,null,null,null,null,null,null,null,null,null,null,null,null,null,null,null,null,null,null,null,null,null,null,6222,"Desetil-atrazin sed.","mg/kg",6222]
[null,null,null,null,null,null,null,null,null,null,null,null,null,null,null,null,null,null,null,null,null,null,null,null,null,null,null,null,null,null,null,null,null,null,null,null,null,null,null,null,null,null,null,null,null,6281,"Desetil-terbutilazin","µg/l",6281]
[null,null,null,null,null,null,null,null,null,null,null,null,null,null,null,null,null,null,null,null,null,null,null,null,null,null,null,null,null,null,null,null,null,null,null,null,null,null,null,null,null,null,null,null,null,6232,"Desizopropil-atrazin sed.","mg/kg",6232]
[null,null,null,null,null,null,null,null,null,null,null,null,null,null,null,null,null,null,null,null,null,null,null,null,null,null,null,null,null,null,null,null,null,null,null,null,null,null,null,null,null,null,null,null,null,6574,"Diazinon","µg/l",6574]
[null,null,null,null,null,null,null,null,null,null,null,null,null,null,null,null,null,null,null,null,null,null,null,null,null,null,null,null,null,null,null,null,null,null,null,null,null,null,null,null,null,null,null,null,null,7150,"Dibenzo(a,h)antracen","µg/l",7150]
[null,null,null,null,null,null,null,null,null,null,null,null,null,null,null,null,null,null,null,null,null,null,null,null,null,null,null,null,null,null,null,null,null,null,null,null,null,null,null,null,null,null,null,null,null,7152,"Dibenzo(a,h)antracen-sed.","mg/kg",7152]
[null,null,null,null,null,null,null,null,null,null,null,null,null,null,null,null,null,null,null,null,null,null,null,null,null,null,null,null,null,null,null,null,null,null,null,null,null,null,null,null,null,null,null,null,null,8040,"Dibromklorometan","µg/l",8040]
[null,null,null,null,null,null,null,null,null,null,null,null,null,null,null,null,null,null,null,null,null,null,null,null,null,null,null,null,null,null,null,null,null,null,null,null,null,null,null,null,null,null,null,null,null,3140,"Dibutilftalat","µg/l",3140]
[null,null,null,null,null,null,null,null,null,null,null,null,null,null,null,null,null,null,null,null,null,null,null,null,null,null,null,null,null,null,null,null,null,null,null,null,null,null,null,null,null,null,null,null,null,3330,"Dibutilftalat","µg/l",3330]
[null,null,null,null,null,null,null,null,null,null,null,null,null,null,null,null,null,null,null,null,null,null,null,null,null,null,null,null,null,null,null,null,null,null,null,null,null,null,null,null,null,null,null,null,null,3320,"Dibutilkositrove spojine  ","µg DBT/l",3320]
[null,null,null,null,null,null,null,null,null,null,null,null,null,null,null,null,null,null,null,null,null,null,null,null,null,null,null,null,null,null,null,null,null,null,null,null,null,null,null,null,null,null,null,null,null,6470,"Dicamba","µg/l",6470]
[null,null,null,null,null,null,null,null,null,null,null,null,null,null,null,null,null,null,null,null,null,null,null,null,null,null,null,null,null,null,null,null,null,null,null,null,null,null,null,null,null,null,null,null,null,6080,"Dieldrin","µg/l",6080]
[null,null,null,null,null,null,null,null,null,null,null,null,null,null,null,null,null,null,null,null,null,null,null,null,null,null,null,null,null,null,null,null,null,null,null,null,null,null,null,null,null,null,null,null,null,6082,"Dieldrin sed.","mg/kg",6082]
[null,null,null,null,null,null,null,null,null,null,null,null,null,null,null,null,null,null,null,null,null,null,null,null,null,null,null,null,null,null,null,null,null,null,null,null,null,null,null,null,null,null,null,null,null,3130,"Dietilftalat","µg/l",3130]
[null,null,null,null,null,null,null,null,null,null,null,null,null,null,null,null,null,null,null,null,null,null,null,null,null,null,null,null,null,null,null,null,null,null,null,null,null,null,null,null,null,null,null,null,null,3150,"Dietilheksilftalat","µg/l",3150]
[null,null,null,null,null,null,null,null,null,null,null,null,null,null,null,null,null,null,null,null,null,null,null,null,null,null,null,null,null,null,null,null,null,null,null,null,null,null,null,null,null,null,null,null,null,3317,"Difenil kositrove spojine ","µg/l",3317]
[null,null,null,null,null,null,null,null,null,null,null,null,null,null,null,null,null,null,null,null,null,null,null,null,null,null,null,null,null,null,null,null,null,null,null,null,null,null,null,null,null,null,null,null,null,6532,"Diflufenikan","µg/l",6532]
[null,null,null,null,null,null,null,null,null,null,null,null,null,null,null,null,null,null,null,null,null,null,null,null,null,null,null,null,null,null,null,null,null,null,null,null,null,null,null,null,null,null,null,null,null,8180,"Difluordiklorometan","µg/l",8180]
[null,null,null,null,null,null,null,null,null,null,null,null,null,null,null,null,null,null,null,null,null,null,null,null,null,null,null,null,null,null,null,null,null,null,null,null,null,null,null,null,null,null,null,null,null,6334,"Diklobenil","µg/l",6334]
[null,null,null,null,null,null,null,null,null,null,null,null,null,null,null,null,null,null,null,null,null,null,null,null,null,null,null,null,null,null,null,null,null,null,null,null,null,null,null,null,null,null,null,null,null,6332,"Diklobenil-sed.","mg/kg",6332]
[null,null,null,null,null,null,null,null,null,null,null,null,null,null,null,null,null,null,null,null,null,null,null,null,null,null,null,null,null,null,null,null,null,null,null,null,null,null,null,null,null,null,null,null,null,12010,"Diklofenak","µg/L",12010]
[null,null,null,null,null,null,null,null,null,null,null,null,null,null,null,null,null,null,null,null,null,null,null,null,null,null,null,null,null,null,null,null,null,null,null,null,null,null,null,null,null,null,null,null,null,6590,"Diklofluanid","µg/l",6590]
[null,null,null,null,null,null,null,null,null,null,null,null,null,null,null,null,null,null,null,null,null,null,null,null,null,null,null,null,null,null,null,null,null,null,null,null,null,null,null,null,null,null,null,null,null,6916,"Dikloprop–P","µg/l",6916]
[null,null,null,null,null,null,null,null,null,null,null,null,null,null,null,null,null,null,null,null,null,null,null,null,null,null,null,null,null,null,null,null,null,null,null,null,null,null,null,null,null,null,null,null,null,5399,"diklorobenzeni (vsota)","µg/l",5399]
[null,null,null,null,null,null,null,null,null,null,null,null,null,null,null,null,null,null,null,null,null,null,null,null,null,null,null,null,null,null,null,null,null,null,null,null,null,null,null,null,null,null,null,null,null,6860,"Diklorvos","µg/l",6860]
[null,null,null,null,null,null,null,null,null,null,null,null,null,null,null,null,null,null,null,null,null,null,null,null,null,null,null,null,null,null,null,null,null,null,null,null,null,null,null,null,null,null,null,null,null,6862,"Diklorvos sed.","mg/kg",6862]
[null,null,null,null,null,null,null,null,null,null,null,null,null,null,null,null,null,null,null,null,null,null,null,null,null,null,null,null,null,null,null,null,null,null,null,null,null,null,null,null,null,null,null,null,null,6918,"Dimetaklor","µg/l",6918]
[null,null,null,null,null,null,null,null,null,null,null,null,null,null,null,null,null,null,null,null,null,null,null,null,null,null,null,null,null,null,null,null,null,null,null,null,null,null,null,null,null,null,null,null,null,6522,"Dimetenamid sed.","mg/kg",6522]
[null,null,null,null,null,null,null,null,null,null,null,null,null,null,null,null,null,null,null,null,null,null,null,null,null,null,null,null,null,null,null,null,null,null,null,null,null,null,null,null,null,null,null,null,null,202,"dimetilftalat","µg/l",202]
[null,null,null,null,null,null,null,null,null,null,null,null,null,null,null,null,null,null,null,null,null,null,null,null,null,null,null,null,null,null,null,null,null,null,null,null,null,null,null,null,null,null,null,null,null,6880,"Dimetoat","µg/l",6880]
[null,null,null,null,null,null,null,null,null,null,null,null,null,null,null,null,null,null,null,null,null,null,null,null,null,null,null,null,null,null,null,null,null,null,null,null,null,null,null,null,null,null,null,null,null,6534,"Dimetomorf","µg/l",6534]
[null,null,null,null,null,null,null,null,null,null,null,null,null,null,null,null,null,null,null,null,null,null,null,null,null,null,null,null,null,null,null,null,null,null,null,null,null,null,null,null,null,null,null,null,null,594,"dioktil ftalat","µg/l",594]
[null,null,null,null,null,null,null,null,null,null,null,null,null,null,null,null,null,null,null,null,null,null,null,null,null,null,null,null,null,null,null,null,null,null,null,null,null,null,null,null,null,null,null,null,null,864,"disulfoton","µg/l",864]
[null,null,null,null,null,null,null,null,null,null,null,null,null,null,null,null,null,null,null,null,null,null,null,null,null,null,null,null,null,null,null,null,null,null,null,null,null,null,null,null,null,null,null,null,null,6340,"Diuron","µg/l",6340]
[null,null,null,null,null,null,null,null,null,null,null,null,null,null,null,null,null,null,null,null,null,null,null,null,null,null,null,null,null,null,null,null,null,null,null,null,null,null,null,null,null,null,null,null,null,1130,"Dno ","cm",1130]
[null,null,null,null,null,null,null,null,null,null,null,null,null,null,null,null,null,null,null,null,null,null,null,null,null,null,null,null,null,null,null,null,null,null,null,null,null,null,null,null,null,null,null,null,null,2102,"DOC","mg/l",2102]
[null,null,null,null,null,null,null,null,null,null,null,null,null,null,null,null,null,null,null,null,null,null,null,null,null,null,null,null,null,null,null,null,null,null,null,null,null,null,null,null,null,null,null,null,null,2750,"Dušik-Kjeldahl","mg/l",2750]
[null,null,null,null,null,null,null,null,null,null,null,null,null,null,null,null,null,null,null,null,null,null,null,null,null,null,null,null,null,null,null,null,null,null,null,null,null,null,null,null,null,null,null,null,null,1612,"Električna prev. - končna","µS/cm",1612]
[null,null,null,null,null,null,null,null,null,null,null,null,null,null,null,null,null,null,null,null,null,null,null,null,null,null,null,null,null,null,null,null,null,null,null,null,null,null,null,null,null,null,null,null,null,1610,"Električna prev. - začetna","µS/cm",1610]
[null,null,null,null,null,null,null,null,null,null,null,null,null,null,null,null,null,null,null,null,null,null,null,null,null,null,null,null,null,null,null,null,null,null,null,null,null,null,null,null,null,null,null,null,null,1071,"Električna prevodnost (25 0C)","µS/cm",1071]
[null,null,null,null,null,null,null,null,null,null,null,null,null,null,null,null,null,null,null,null,null,null,null,null,null,null,null,null,null,null,null,null,null,null,null,null,null,null,null,null,null,null,null,null,null,6185,"Endosulfan sulfat","µg/l",6185]
[null,null,null,null,null,null,null,null,null,null,null,null,null,null,null,null,null,null,null,null,null,null,null,null,null,null,null,null,null,null,null,null,null,null,null,null,null,null,null,null,null,null,null,null,null,6186,"Endosulfan sulfat sed.","mg/kg",6186]
[null,null,null,null,null,null,null,null,null,null,null,null,null,null,null,null,null,null,null,null,null,null,null,null,null,null,null,null,null,null,null,null,null,null,null,null,null,null,null,null,null,null,null,null,null,6181,"Endosulfan(alfa)","µg/l",6181]
[null,null,null,null,null,null,null,null,null,null,null,null,null,null,null,null,null,null,null,null,null,null,null,null,null,null,null,null,null,null,null,null,null,null,null,null,null,null,null,null,null,null,null,null,null,6183,"Endosulfan(alfa) sed.","mg/kg",6183]
[null,null,null,null,null,null,null,null,null,null,null,null,null,null,null,null,null,null,null,null,null,null,null,null,null,null,null,null,null,null,null,null,null,null,null,null,null,null,null,null,null,null,null,null,null,6180,"Endosulfan(alfa+beta)","µg/l",6180]
[null,null,null,null,null,null,null,null,null,null,null,null,null,null,null,null,null,null,null,null,null,null,null,null,null,null,null,null,null,null,null,null,null,null,null,null,null,null,null,null,null,null,null,null,null,6182,"Endosulfan(beta)","µg/l",6182]
[null,null,null,null,null,null,null,null,null,null,null,null,null,null,null,null,null,null,null,null,null,null,null,null,null,null,null,null,null,null,null,null,null,null,null,null,null,null,null,null,null,null,null,null,null,6184,"Endosulfan(beta) sed.","mg/kg",6184]
[null,null,null,null,null,null,null,null,null,null,null,null,null,null,null,null,null,null,null,null,null,null,null,null,null,null,null,null,null,null,null,null,null,null,null,null,null,null,null,null,null,null,null,null,null,6090,"Endrin","µg/l",6090]
[null,null,null,null,null,null,null,null,null,null,null,null,null,null,null,null,null,null,null,null,null,null,null,null,null,null,null,null,null,null,null,null,null,null,null,null,null,null,null,null,null,null,null,null,null,6092,"Endrin sed.","mg/kg",6092]
[null,null,null,null,null,null,null,null,null,null,null,null,null,null,null,null,null,null,null,null,null,null,null,null,null,null,null,null,null,null,null,null,null,null,null,null,null,null,null,null,null,null,null,null,null,9120,"Enterovirusi","PFU/10 l",9120]
[null,null,null,null,null,null,null,null,null,null,null,null,null,null,null,null,null,null,null,null,null,null,null,null,null,null,null,null,null,null,null,null,null,null,null,null,null,null,null,null,null,null,null,null,null,8260,"EOX","mg Cl/kg",8260]
[null,null,null,null,null,null,null,null,null,null,null,null,null,null,null,null,null,null,null,null,null,null,null,null,null,null,null,null,null,null,null,null,null,null,null,null,null,null,null,null,null,null,null,null,null,9100,"Escherichia coli (E. coli)","CFU/100 ml",9100]
[null,null,null,null,null,null,null,null,null,null,null,null,null,null,null,null,null,null,null,null,null,null,null,null,null,null,null,null,null,null,null,null,null,null,null,null,null,null,null,null,null,null,null,null,null,666,"etanol","mg/l",666]
[null,null,null,null,null,null,null,null,null,null,null,null,null,null,null,null,null,null,null,null,null,null,null,null,null,null,null,null,null,null,null,null,null,null,null,null,null,null,null,null,null,null,null,null,null,1217,"etilacetat","mg/l",1217]
[null,null,null,null,null,null,null,null,null,null,null,null,null,null,null,null,null,null,null,null,null,null,null,null,null,null,null,null,null,null,null,null,null,null,null,null,null,null,null,null,null,null,null,null,null,880,"etion","µg/l",880]
[null,null,null,null,null,null,null,null,null,null,null,null,null,null,null,null,null,null,null,null,null,null,null,null,null,null,null,null,null,null,null,null,null,null,null,null,null,null,null,null,null,null,null,null,null,7050,"Fenantren","µg/l",7050]
[null,null,null,null,null,null,null,null,null,null,null,null,null,null,null,null,null,null,null,null,null,null,null,null,null,null,null,null,null,null,null,null,null,null,null,null,null,null,null,null,null,null,null,null,null,7052,"Fenantren-sed.","mg/kg",7052]
[null,null,null,null,null,null,null,null,null,null,null,null,null,null,null,null,null,null,null,null,null,null,null,null,null,null,null,null,null,null,null,null,null,null,null,null,null,null,null,null,null,null,null,null,null,899,"fenheksamid","µg/l",899]
[null,null,null,null,null,null,null,null,null,null,null,null,null,null,null,null,null,null,null,null,null,null,null,null,null,null,null,null,null,null,null,null,null,null,null,null,null,null,null,null,null,null,null,null,null,6810,"Fenitrotion","µg/l",6810]
[null,null,null,null,null,null,null,null,null,null,null,null,null,null,null,null,null,null,null,null,null,null,null,null,null,null,null,null,null,null,null,null,null,null,null,null,null,null,null,null,null,null,null,null,null,6812,"Fenitrotion sed.","mg/kg",6812]
[null,null,null,null,null,null,null,null,null,null,null,null,null,null,null,null,null,null,null,null,null,null,null,null,null,null,null,null,null,null,null,null,null,null,null,null,null,null,null,null,null,null,null,null,null,12012,"Fenofibrat","µg/L",12012]
[null,null,null,null,null,null,null,null,null,null,null,null,null,null,null,null,null,null,null,null,null,null,null,null,null,null,null,null,null,null,null,null,null,null,null,null,null,null,null,null,null,null,null,null,null,5050,"Fenol","µg/l",5050]
[null,null,null,null,null,null,null,null,null,null,null,null,null,null,null,null,null,null,null,null,null,null,null,null,null,null,null,null,null,null,null,null,null,null,null,null,null,null,null,null,null,null,null,null,null,5052,"Fenol, sed.","mg/kg",5052]
[null,null,null,null,null,null,null,null,null,null,null,null,null,null,null,null,null,null,null,null,null,null,null,null,null,null,null,null,null,null,null,null,null,null,null,null,null,null,null,null,null,null,null,null,null,5020,"Fenolne snovi (hlapne z vodno paro)","µg/l",5020]
[null,null,null,null,null,null,null,null,null,null,null,null,null,null,null,null,null,null,null,null,null,null,null,null,null,null,null,null,null,null,null,null,null,null,null,null,null,null,null,null,null,null,null,null,null,12014,"Fenoterol","µg/L",12014]
[null,null,null,null,null,null,null,null,null,null,null,null,null,null,null,null,null,null,null,null,null,null,null,null,null,null,null,null,null,null,null,null,null,null,null,null,null,null,null,null,null,null,null,null,null,6535,"Fenpropidin","µg/l",6535]
[null,null,null,null,null,null,null,null,null,null,null,null,null,null,null,null,null,null,null,null,null,null,null,null,null,null,null,null,null,null,null,null,null,null,null,null,null,null,null,null,null,null,null,null,null,6584,"fentin hidroksid","µg/l",6584]
[null,null,null,null,null,null,null,null,null,null,null,null,null,null,null,null,null,null,null,null,null,null,null,null,null,null,null,null,null,null,null,null,null,null,null,null,null,null,null,null,null,null,null,null,null,6820,"Fention","µg/l",6820]
[null,null,null,null,null,null,null,null,null,null,null,null,null,null,null,null,null,null,null,null,null,null,null,null,null,null,null,null,null,null,null,null,null,null,null,null,null,null,null,null,null,null,null,null,null,6822,"Fention sed.","mg/kg",6822]
[null,null,null,null,null,null,null,null,null,null,null,null,null,null,null,null,null,null,null,null,null,null,null,null,null,null,null,null,null,null,null,null,null,null,null,null,null,null,null,null,null,null,null,null,null,1183,"fenuron","µg/l",1183]
[null,null,null,null,null,null,null,null,null,null,null,null,null,null,null,null,null,null,null,null,null,null,null,null,null,null,null,null,null,null,null,null,null,null,null,null,null,null,null,null,null,null,null,null,null,2040,"Filtrirane izparine po sušenju","mg/l",2040]
[null,null,null,null,null,null,null,null,null,null,null,null,null,null,null,null,null,null,null,null,null,null,null,null,null,null,null,null,null,null,null,null,null,null,null,null,null,null,null,null,null,null,null,null,null,6805,"Fludioksinil","µg/L",6805]
[null,null,null,null,null,null,null,null,null,null,null,null,null,null,null,null,null,null,null,null,null,null,null,null,null,null,null,null,null,null,null,null,null,null,null,null,null,null,null,null,null,null,null,null,null,6530,"Flufenacet","µg/l",6530]
[null,null,null,null,null,null,null,null,null,null,null,null,null,null,null,null,null,null,null,null,null,null,null,null,null,null,null,null,null,null,null,null,null,null,null,null,null,null,null,null,null,null,null,null,null,6533,"Flukvinkonazol","µg/l",6533]
[null,null,null,null,null,null,null,null,null,null,null,null,null,null,null,null,null,null,null,null,null,null,null,null,null,null,null,null,null,null,null,null,null,null,null,null,null,null,null,null,null,null,null,null,null,1184,"fluometron","µg/l",1184]
[null,null,null,null,null,null,null,null,null,null,null,null,null,null,null,null,null,null,null,null,null,null,null,null,null,null,null,null,null,null,null,null,null,null,null,null,null,null,null,null,null,null,null,null,null,7072,"Fluoranten-sed.","mg/kg",7072]
[null,null,null,null,null,null,null,null,null,null,null,null,null,null,null,null,null,null,null,null,null,null,null,null,null,null,null,null,null,null,null,null,null,null,null,null,null,null,null,null,null,null,null,null,null,7040,"Fluoren","µg/l",7040]
[null,null,null,null,null,null,null,null,null,null,null,null,null,null,null,null,null,null,null,null,null,null,null,null,null,null,null,null,null,null,null,null,null,null,null,null,null,null,null,null,null,null,null,null,null,7042,"Fluoren-sed.","mg/kg",7042]
[null,null,null,null,null,null,null,null,null,null,null,null,null,null,null,null,null,null,null,null,null,null,null,null,null,null,null,null,null,null,null,null,null,null,null,null,null,null,null,null,null,null,null,null,null,6364,"Fluorometuron","µg/l",6364]
[null,null,null,null,null,null,null,null,null,null,null,null,null,null,null,null,null,null,null,null,null,null,null,null,null,null,null,null,null,null,null,null,null,null,null,null,null,null,null,null,null,null,null,null,null,6920,"Flurokloridon","µg/l",6920]
[null,null,null,null,null,null,null,null,null,null,null,null,null,null,null,null,null,null,null,null,null,null,null,null,null,null,null,null,null,null,null,null,null,null,null,null,null,null,null,null,null,null,null,null,null,6570,"Folpet","µg/l",6570]
[null,null,null,null,null,null,null,null,null,null,null,null,null,null,null,null,null,null,null,null,null,null,null,null,null,null,null,null,null,null,null,null,null,null,null,null,null,null,null,null,null,null,null,null,null,6545,"Foramsulfuron","µg/l",6545]
[null,null,null,null,null,null,null,null,null,null,null,null,null,null,null,null,null,null,null,null,null,null,null,null,null,null,null,null,null,null,null,null,null,null,null,null,null,null,null,null,null,null,null,null,null,947,"forat","µg/l",947]
[null,null,null,null,null,null,null,null,null,null,null,null,null,null,null,null,null,null,null,null,null,null,null,null,null,null,null,null,null,null,null,null,null,null,null,null,null,null,null,null,null,null,null,null,null,954,"fosalon","µg/l",954]
[null,null,null,null,null,null,null,null,null,null,null,null,null,null,null,null,null,null,null,null,null,null,null,null,null,null,null,null,null,null,null,null,null,null,null,null,null,null,null,null,null,null,null,null,null,6830,"Fosetil","µg/l",6830]
[null,null,null,null,null,null,null,null,null,null,null,null,null,null,null,null,null,null,null,null,null,null,null,null,null,null,null,null,null,null,null,null,null,null,null,null,null,null,null,null,null,null,null,null,null,955,"fosfamidon","µg/l",955]
[null,null,null,null,null,null,null,null,null,null,null,null,null,null,null,null,null,null,null,null,null,null,null,null,null,null,null,null,null,null,null,null,null,null,null,null,null,null,null,null,null,null,null,null,null,2220,"Fosfor (skupno)","mg PO4/l",2220]
[null,null,null,null,null,null,null,null,null,null,null,null,null,null,null,null,null,null,null,null,null,null,null,null,null,null,null,null,null,null,null,null,null,null,null,null,null,null,null,null,null,null,null,null,null,956,"fosmet","µg/l",956]
[null,null,null,null,null,null,null,null,null,null,null,null,null,null,null,null,null,null,null,null,null,null,null,null,null,null,null,null,null,null,null,null,null,null,null,null,null,null,null,null,null,null,null,null,null,1134,"Funkcija objekta","-",1134]
[null,null,null,null,null,null,null,null,null,null,null,null,null,null,null,null,null,null,null,null,null,null,null,null,null,null,null,null,null,null,null,null,null,null,null,null,null,null,null,null,null,null,null,null,null,4490,"Galij-filt.","µg/L",4490]
[null,null,null,null,null,null,null,null,null,null,null,null,null,null,null,null,null,null,null,null,null,null,null,null,null,null,null,null,null,null,null,null,null,null,null,null,null,null,null,null,null,null,null,null,null,6142,"gama - HCH (Lindan) sed.","mg/kg",6142]
[null,null,null,null,null,null,null,null,null,null,null,null,null,null,null,null,null,null,null,null,null,null,null,null,null,null,null,null,null,null,null,null,null,null,null,null,null,null,null,null,null,null,null,null,null,6140,"gama-HCH (Lindan)","µg/l",6140]
[null,null,null,null,null,null,null,null,null,null,null,null,null,null,null,null,null,null,null,null,null,null,null,null,null,null,null,null,null,null,null,null,null,null,null,null,null,null,null,null,null,null,null,null,null,12016,"Gemfibrozil","µg/L",12016]
[null,null,null,null,null,null,null,null,null,null,null,null,null,null,null,null,null,null,null,null,null,null,null,null,null,null,null,null,null,null,null,null,null,null,null,null,null,null,null,null,null,null,null,null,null,40,"Geod. koordinate x ","-",40]
[null,null,null,null,null,null,null,null,null,null,null,null,null,null,null,null,null,null,null,null,null,null,null,null,null,null,null,null,null,null,null,null,null,null,null,null,null,null,null,null,null,null,null,null,null,50,"Geod. koordinate y ","-",50]
[null,null,null,null,null,null,null,null,null,null,null,null,null,null,null,null,null,null,null,null,null,null,null,null,null,null,null,null,null,null,null,null,null,null,null,null,null,null,null,null,null,null,null,null,null,6205,"Glifosat","µg/l",6205]
[null,null,null,null,null,null,null,null,null,null,null,null,null,null,null,null,null,null,null,null,null,null,null,null,null,null,null,null,null,null,null,null,null,null,null,null,null,null,null,null,null,null,null,null,null,5496,"Glikol etri (vsota)","mg/l",5496]
[null,null,null,null,null,null,null,null,null,null,null,null,null,null,null,null,null,null,null,null,null,null,null,null,null,null,null,null,null,null,null,null,null,null,null,null,null,null,null,null,null,null,null,null,null,1301,"Globina do podzemne vode po predčrpanju ","m",1301]
[null,null,null,null,null,null,null,null,null,null,null,null,null,null,null,null,null,null,null,null,null,null,null,null,null,null,null,null,null,null,null,null,null,null,null,null,null,null,null,null,null,null,null,null,null,1300,"Globina do podzemne vode pred predčrpanjem ","m",1300]
[null,null,null,null,null,null,null,null,null,null,null,null,null,null,null,null,null,null,null,null,null,null,null,null,null,null,null,null,null,null,null,null,null,null,null,null,null,null,null,null,null,null,null,null,null,1140,"Globina vrtine","m",1140]
[null,null,null,null,null,null,null,null,null,null,null,null,null,null,null,null,null,null,null,null,null,null,null,null,null,null,null,null,null,null,null,null,null,null,null,null,null,null,null,null,null,null,null,null,null,1170,"Globina zajema vzorca","m ",1170]
[null,null,null,null,null,null,null,null,null,null,null,null,null,null,null,null,null,null,null,null,null,null,null,null,null,null,null,null,null,null,null,null,null,null,null,null,null,null,null,null,null,null,null,null,null,6206,"Glufosinat-amonijeva sol","µg/l",6206]
[null,null,null,null,null,null,null,null,null,null,null,null,null,null,null,null,null,null,null,null,null,null,null,null,null,null,null,null,null,null,null,null,null,null,null,null,null,null,null,null,null,null,null,null,null,5136,"heksa(metoksimetil)melamin (HMMM)","µg/l",5136]
[null,null,null,null,null,null,null,null,null,null,null,null,null,null,null,null,null,null,null,null,null,null,null,null,null,null,null,null,null,null,null,null,null,null,null,null,null,null,null,null,null,null,null,null,null,6160,"Heksaklorbenzen","µg/l",6160]
[null,null,null,null,null,null,null,null,null,null,null,null,null,null,null,null,null,null,null,null,null,null,null,null,null,null,null,null,null,null,null,null,null,null,null,null,null,null,null,null,null,null,null,null,null,6170,"Heksaklorbutadien","µg/l",6170]
[null,null,null,null,null,null,null,null,null,null,null,null,null,null,null,null,null,null,null,null,null,null,null,null,null,null,null,null,null,null,null,null,null,null,null,null,null,null,null,null,null,null,null,null,null,6162,"Heksaklorobenzen sed.","mg/kg",6162]
[null,null,null,null,null,null,null,null,null,null,null,null,null,null,null,null,null,null,null,null,null,null,null,null,null,null,null,null,null,null,null,null,null,null,null,null,null,null,null,null,null,null,null,null,null,6172,"Heksaklorobutadien sed.","mg/kg",6172]
[null,null,null,null,null,null,null,null,null,null,null,null,null,null,null,null,null,null,null,null,null,null,null,null,null,null,null,null,null,null,null,null,null,null,null,null,null,null,null,null,null,null,null,null,null,3000,"heksaklorocikloheksan","µg/l",3000]
[null,null,null,null,null,null,null,null,null,null,null,null,null,null,null,null,null,null,null,null,null,null,null,null,null,null,null,null,null,null,null,null,null,null,null,null,null,null,null,null,null,null,null,null,null,368,"Heksakloroetan","µg/L",368]
[null,null,null,null,null,null,null,null,null,null,null,null,null,null,null,null,null,null,null,null,null,null,null,null,null,null,null,null,null,null,null,null,null,null,null,null,null,null,null,null,null,null,null,null,null,6322,"Heksazinon","µg/l",6322]
[null,null,null,null,null,null,null,null,null,null,null,null,null,null,null,null,null,null,null,null,null,null,null,null,null,null,null,null,null,null,null,null,null,null,null,null,null,null,null,null,null,null,null,null,null,6323,"Heksazinon sed.","mg/kg",6323]
[null,null,null,null,null,null,null,null,null,null,null,null,null,null,null,null,null,null,null,null,null,null,null,null,null,null,null,null,null,null,null,null,null,null,null,null,null,null,null,null,null,null,null,null,null,6100,"Heptaklor","µg/l",6100]
[null,null,null,null,null,null,null,null,null,null,null,null,null,null,null,null,null,null,null,null,null,null,null,null,null,null,null,null,null,null,null,null,null,null,null,null,null,null,null,null,null,null,null,null,null,6102,"Heptaklor sed.","mg/kg",6102]
[null,null,null,null,null,null,null,null,null,null,null,null,null,null,null,null,null,null,null,null,null,null,null,null,null,null,null,null,null,null,null,null,null,null,null,null,null,null,null,null,null,null,null,null,null,6110,"Heptaklorepoksid","µg/l",6110]
[null,null,null,null,null,null,null,null,null,null,null,null,null,null,null,null,null,null,null,null,null,null,null,null,null,null,null,null,null,null,null,null,null,null,null,null,null,null,null,null,null,null,null,null,null,1603,"HITROST ČRPANJA","l/min",1603]
[null,null,null,null,null,null,null,null,null,null,null,null,null,null,null,null,null,null,null,null,null,null,null,null,null,null,null,null,null,null,null,null,null,null,null,null,null,null,null,null,null,null,null,null,null,10,"Ime postaje","-",10]
[null,null,null,null,null,null,null,null,null,null,null,null,null,null,null,null,null,null,null,null,null,null,null,null,null,null,null,null,null,null,null,null,null,null,null,null,null,null,null,null,null,null,null,null,null,6908,"Imidakloprid","µg/l",6908]
[null,null,null,null,null,null,null,null,null,null,null,null,null,null,null,null,null,null,null,null,null,null,null,null,null,null,null,null,null,null,null,null,null,null,null,null,null,null,null,null,null,null,null,null,null,7162,"Indeno(1,2,3-cd)piren-sed.","mg/kg",7162]
[null,null,null,null,null,null,null,null,null,null,null,null,null,null,null,null,null,null,null,null,null,null,null,null,null,null,null,null,null,null,null,null,null,null,null,null,null,null,null,null,null,null,null,null,null,12018,"Indometacin","µg/L",12018]
[null,null,null,null,null,null,null,null,null,null,null,null,null,null,null,null,null,null,null,null,null,null,null,null,null,null,null,null,null,null,null,null,null,null,null,null,null,null,null,null,null,null,null,null,null,9110,"Intestinalni enterokoki","CFU/100 ml",9110]
[null,null,null,null,null,null,null,null,null,null,null,null,null,null,null,null,null,null,null,null,null,null,null,null,null,null,null,null,null,null,null,null,null,null,null,null,null,null,null,null,null,null,null,null,null,6337,"Ioksinil","µg/l",6337]
[null,null,null,null,null,null,null,null,null,null,null,null,null,null,null,null,null,null,null,null,null,null,null,null,null,null,null,null,null,null,null,null,null,null,null,null,null,null,null,null,null,null,null,null,null,2226,"izmerjeni potencial (Ag/AgCl 3 mol/l KCl)","mV",2226]
[null,null,null,null,null,null,null,null,null,null,null,null,null,null,null,null,null,null,null,null,null,null,null,null,null,null,null,null,null,null,null,null,null,null,null,null,null,null,null,null,null,null,null,null,null,6095,"izodrin","µg/l",6095]
[null,null,null,null,null,null,null,null,null,null,null,null,null,null,null,null,null,null,null,null,null,null,null,null,null,null,null,null,null,null,null,null,null,null,null,null,null,null,null,null,null,null,null,null,null,6295,"Izoksaflutol","µg/l",6295]
[null,null,null,null,null,null,null,null,null,null,null,null,null,null,null,null,null,null,null,null,null,null,null,null,null,null,null,null,null,null,null,null,null,null,null,null,null,null,null,null,null,null,null,null,null,6343,"Izoproturon","µg/l",6343]
[null,null,null,null,null,null,null,null,null,null,null,null,null,null,null,null,null,null,null,null,null,null,null,null,null,null,null,null,null,null,null,null,null,null,null,null,null,null,null,null,null,null,null,null,null,2010,"Izparilni ostanek (105 0C)","mg/l",2010]
[null,null,null,null,null,null,null,null,null,null,null,null,null,null,null,null,null,null,null,null,null,null,null,null,null,null,null,null,null,null,null,null,null,null,null,null,null,null,null,null,null,null,null,null,null,13,"Izvir","-",13]
[null,null,null,null,null,null,null,null,null,null,null,null,null,null,null,null,null,null,null,null,null,null,null,null,null,null,null,null,null,null,null,null,null,null,null,null,null,null,null,null,null,null,null,null,null,2200,"Jodidi","mg/l",2200]
[null,null,null,null,null,null,null,null,null,null,null,null,null,null,null,null,null,null,null,null,null,null,null,null,null,null,null,null,null,null,null,null,null,null,null,null,null,null,null,null,null,null,null,null,null,6902,"Jodosulfuron","µg/l",6902]
[null,null,null,null,null,null,null,null,null,null,null,null,null,null,null,null,null,null,null,null,null,null,null,null,null,null,null,null,null,null,null,null,null,null,null,null,null,null,null,null,null,null,null,null,null,4140,"Kadmij-sed.","mg/kg",4140]
[null,null,null,null,null,null,null,null,null,null,null,null,null,null,null,null,null,null,null,null,null,null,null,null,null,null,null,null,null,null,null,null,null,null,null,null,null,null,null,null,null,null,null,null,null,6580,"Kaptan","µg/l",6580]
[null,null,null,null,null,null,null,null,null,null,null,null,null,null,null,null,null,null,null,null,null,null,null,null,null,null,null,null,null,null,null,null,null,null,null,null,null,null,null,null,null,null,null,null,null,12020,"Karbamazepin","µg/L",12020]
[null,null,null,null,null,null,null,null,null,null,null,null,null,null,null,null,null,null,null,null,null,null,null,null,null,null,null,null,null,null,null,null,null,null,null,null,null,null,null,null,null,null,null,null,null,2320,"Karbonati","mg CO3/l",2320]
[null,null,null,null,null,null,null,null,null,null,null,null,null,null,null,null,null,null,null,null,null,null,null,null,null,null,null,null,null,null,null,null,null,null,null,null,null,null,null,null,null,null,null,null,null,2810,"Karbonatna trdota","0NT",2810]
[null,null,null,null,null,null,null,null,null,null,null,null,null,null,null,null,null,null,null,null,null,null,null,null,null,null,null,null,null,null,null,null,null,null,null,null,null,null,null,null,null,null,null,null,null,3030,"Kationski detergenti","mg CTBS/l",3030]
[null,null,null,null,null,null,null,null,null,null,null,null,null,null,null,null,null,null,null,null,null,null,null,null,null,null,null,null,null,null,null,null,null,null,null,null,null,null,null,null,null,null,null,null,null,12022,"Ketoprofen","µg/L",12022]
[null,null,null,null,null,null,null,null,null,null,null,null,null,null,null,null,null,null,null,null,null,null,null,null,null,null,null,null,null,null,null,null,null,null,null,null,null,null,null,null,null,null,null,null,null,1081,"Kisik sonda","mg O2/l",1081]
[null,null,null,null,null,null,null,null,null,null,null,null,null,null,null,null,null,null,null,null,null,null,null,null,null,null,null,null,null,null,null,null,null,null,null,null,null,null,null,null,null,null,null,null,null,6536,"Klomazon","µg/l",6536]
[null,null,null,null,null,null,null,null,null,null,null,null,null,null,null,null,null,null,null,null,null,null,null,null,null,null,null,null,null,null,null,null,null,null,null,null,null,null,null,null,null,null,null,null,null,6922,"Klopiralid","µg/l",6922]
[null,null,null,null,null,null,null,null,null,null,null,null,null,null,null,null,null,null,null,null,null,null,null,null,null,null,null,null,null,null,null,null,null,null,null,null,null,null,null,null,null,null,null,null,null,6924,"Klorantraniliprol","µg/l",6924]
[null,null,null,null,null,null,null,null,null,null,null,null,null,null,null,null,null,null,null,null,null,null,null,null,null,null,null,null,null,null,null,null,null,null,null,null,null,null,null,null,null,null,null,null,null,6600,"Klorbenzilat","µg/l",6600]
[null,null,null,null,null,null,null,null,null,null,null,null,null,null,null,null,null,null,null,null,null,null,null,null,null,null,null,null,null,null,null,null,null,null,null,null,null,null,null,null,null,null,null,null,null,6602,"Klorbenzilat sed.","mg/kg",6602]
[null,null,null,null,null,null,null,null,null,null,null,null,null,null,null,null,null,null,null,null,null,null,null,null,null,null,null,null,null,null,null,null,null,null,null,null,null,null,null,null,null,null,null,null,null,6347,"Klorbromuron","µg/l",6347]
[null,null,null,null,null,null,null,null,null,null,null,null,null,null,null,null,null,null,null,null,null,null,null,null,null,null,null,null,null,null,null,null,null,null,null,null,null,null,null,null,null,null,null,null,null,510,"klordan","µg/l",510]
[null,null,null,null,null,null,null,null,null,null,null,null,null,null,null,null,null,null,null,null,null,null,null,null,null,null,null,null,null,null,null,null,null,null,null,null,null,null,null,null,null,null,null,null,null,6840,"Klorfenvinfos","µg/l",6840]
[null,null,null,null,null,null,null,null,null,null,null,null,null,null,null,null,null,null,null,null,null,null,null,null,null,null,null,null,null,null,null,null,null,null,null,null,null,null,null,null,null,null,null,null,null,6842,"Klorfenvinfos sed.","mg/kg",6842]
[null,null,null,null,null,null,null,null,null,null,null,null,null,null,null,null,null,null,null,null,null,null,null,null,null,null,null,null,null,null,null,null,null,null,null,null,null,null,null,null,null,null,null,null,null,6700,"Kloridazon","µg/l",6700]
[null,null,null,null,null,null,null,null,null,null,null,null,null,null,null,null,null,null,null,null,null,null,null,null,null,null,null,null,null,null,null,null,null,null,null,null,null,null,null,null,null,null,null,null,null,370,"Klorobenzen","µg/l",370]
[null,null,null,null,null,null,null,null,null,null,null,null,null,null,null,null,null,null,null,null,null,null,null,null,null,null,null,null,null,null,null,null,null,null,null,null,null,null,null,null,null,null,null,null,null,5400,"Klorobenzeni (vsota)","µg/l",5400]
[null,null,null,null,null,null,null,null,null,null,null,null,null,null,null,null,null,null,null,null,null,null,null,null,null,null,null,null,null,null,null,null,null,null,null,null,null,null,null,null,null,null,null,null,null,6245,"Klorotalonil","µg/l",6245]
[null,null,null,null,null,null,null,null,null,null,null,null,null,null,null,null,null,null,null,null,null,null,null,null,null,null,null,null,null,null,null,null,null,null,null,null,null,null,null,null,null,null,null,null,null,6844,"Klorpirifos etil","µg/l",6844]
[null,null,null,null,null,null,null,null,null,null,null,null,null,null,null,null,null,null,null,null,null,null,null,null,null,null,null,null,null,null,null,null,null,null,null,null,null,null,null,null,null,null,null,null,null,6847,"Klorpirifos metil","µg/l",6847]
[null,null,null,null,null,null,null,null,null,null,null,null,null,null,null,null,null,null,null,null,null,null,null,null,null,null,null,null,null,null,null,null,null,null,null,null,null,null,null,null,null,null,null,null,null,6339,"Klortoluron sed.","mg/kg",6339]
[null,null,null,null,null,null,null,null,null,null,null,null,null,null,null,null,null,null,null,null,null,null,null,null,null,null,null,null,null,null,null,null,null,null,null,null,null,null,null,null,null,null,null,null,null,12026,"Kodein","µg/L",12026]
[null,null,null,null,null,null,null,null,null,null,null,null,null,null,null,null,null,null,null,null,null,null,null,null,null,null,null,null,null,null,null,null,null,null,null,null,null,null,null,null,null,null,null,null,null,12024,"Kofein","µg/L",12024]
[null,null,null,null,null,null,null,null,null,null,null,null,null,null,null,null,null,null,null,null,null,null,null,null,null,null,null,null,null,null,null,null,null,null,null,null,null,null,null,null,null,null,null,null,null,9020,"Koliformne bakterije fekalnega izvora","MPN/100ml",9020]
[null,null,null,null,null,null,null,null,null,null,null,null,null,null,null,null,null,null,null,null,null,null,null,null,null,null,null,null,null,null,null,null,null,null,null,null,null,null,null,null,null,null,null,null,null,2080,"KPK s K2Cr2O7","mg O2/l",2080]
[null,null,null,null,null,null,null,null,null,null,null,null,null,null,null,null,null,null,null,null,null,null,null,null,null,null,null,null,null,null,null,null,null,null,null,null,null,null,null,null,null,null,null,null,null,2070,"KPK s KMnO4","mg O2/l",2070]
[null,null,null,null,null,null,null,null,null,null,null,null,null,null,null,null,null,null,null,null,null,null,null,null,null,null,null,null,null,null,null,null,null,null,null,null,null,null,null,null,null,null,null,null,null,1009,"krezoksim-metil","µg/l",1009]
[null,null,null,null,null,null,null,null,null,null,null,null,null,null,null,null,null,null,null,null,null,null,null,null,null,null,null,null,null,null,null,null,null,null,null,null,null,null,null,null,null,null,null,null,null,7100,"Krizen","µg/l",7100]
[null,null,null,null,null,null,null,null,null,null,null,null,null,null,null,null,null,null,null,null,null,null,null,null,null,null,null,null,null,null,null,null,null,null,null,null,null,null,null,null,null,null,null,null,null,7102,"Krizen-sed.","mg/kg",7102]
[null,null,null,null,null,null,null,null,null,null,null,null,null,null,null,null,null,null,null,null,null,null,null,null,null,null,null,null,null,null,null,null,null,null,null,null,null,null,null,null,null,null,null,null,null,4170,"Krom 3+","µg/l",4170]
[null,null,null,null,null,null,null,null,null,null,null,null,null,null,null,null,null,null,null,null,null,null,null,null,null,null,null,null,null,null,null,null,null,null,null,null,null,null,null,null,null,null,null,null,null,4185,"Krom 6+","mg/kg",4185]
[null,null,null,null,null,null,null,null,null,null,null,null,null,null,null,null,null,null,null,null,null,null,null,null,null,null,null,null,null,null,null,null,null,null,null,null,null,null,null,null,null,null,null,null,null,4210,"Krom-sed.","mg/kg",4210]
[null,null,null,null,null,null,null,null,null,null,null,null,null,null,null,null,null,null,null,null,null,null,null,null,null,null,null,null,null,null,null,null,null,null,null,null,null,null,null,null,null,null,null,null,null,5866,"Krotamiton","µg/L",5866]
[null,null,null,null,null,null,null,null,null,null,null,null,null,null,null,null,null,null,null,null,null,null,null,null,null,null,null,null,null,null,null,null,null,null,null,null,null,null,null,null,null,null,null,null,null,1011,"kumafos","µg/l",1011]
[null,null,null,null,null,null,null,null,null,null,null,null,null,null,null,null,null,null,null,null,null,null,null,null,null,null,null,null,null,null,null,null,null,null,null,null,null,null,null,null,null,null,null,null,null,515,"kvintezon (vsota)","µg/l",515]
[null,null,null,null,null,null,null,null,null,null,null,null,null,null,null,null,null,null,null,null,null,null,null,null,null,null,null,null,null,null,null,null,null,null,null,null,null,null,null,null,null,null,null,null,null,35,"Laboratorijska številka","-",35]
[null,null,null,null,null,null,null,null,null,null,null,null,null,null,null,null,null,null,null,null,null,null,null,null,null,null,null,null,null,null,null,null,null,null,null,null,null,null,null,null,null,null,null,null,null,1015,"lambda-Cihalotrin","µg/l",1015]
[null,null,null,null,null,null,null,null,null,null,null,null,null,null,null,null,null,null,null,null,null,null,null,null,null,null,null,null,null,null,null,null,null,null,null,null,null,null,null,null,null,null,null,null,null,60,"Leto","-",60]
[null,null,null,null,null,null,null,null,null,null,null,null,null,null,null,null,null,null,null,null,null,null,null,null,null,null,null,null,null,null,null,null,null,null,null,null,null,null,null,null,null,null,null,null,null,6345,"Linuron","µg/l",6345]
[null,null,null,null,null,null,null,null,null,null,null,null,null,null,null,null,null,null,null,null,null,null,null,null,null,null,null,null,null,null,null,null,null,null,null,null,null,null,null,null,null,null,null,null,null,8211,"m,p-Ksilen","µg/l",8211]
[null,null,null,null,null,null,null,null,null,null,null,null,null,null,null,null,null,null,null,null,null,null,null,null,null,null,null,null,null,null,null,null,null,null,null,null,null,null,null,null,null,null,null,null,null,6800,"Malation","µg/l",6800]
[null,null,null,null,null,null,null,null,null,null,null,null,null,null,null,null,null,null,null,null,null,null,null,null,null,null,null,null,null,null,null,null,null,null,null,null,null,null,null,null,null,null,null,null,null,6802,"Malation sed.","mg/kg",6802]
[null,null,null,null,null,null,null,null,null,null,null,null,null,null,null,null,null,null,null,null,null,null,null,null,null,null,null,null,null,null,null,null,null,null,null,null,null,null,null,null,null,null,null,null,null,1390,"m-alkaliteta","mmol/l",1390]
[null,null,null,null,null,null,null,null,null,null,null,null,null,null,null,null,null,null,null,null,null,null,null,null,null,null,null,null,null,null,null,null,null,null,null,null,null,null,null,null,null,null,null,null,null,6660,"Mankozeb","µg/l",6660]
[null,null,null,null,null,null,null,null,null,null,null,null,null,null,null,null,null,null,null,null,null,null,null,null,null,null,null,null,null,null,null,null,null,null,null,null,null,null,null,null,null,null,null,null,null,210,"Matriks","-",210]
[null,null,null,null,null,null,null,null,null,null,null,null,null,null,null,null,null,null,null,null,null,null,null,null,null,null,null,null,null,null,null,null,null,null,null,null,null,null,null,null,null,null,null,null,null,6400,"MCPA","µg/l",6400]
[null,null,null,null,null,null,null,null,null,null,null,null,null,null,null,null,null,null,null,null,null,null,null,null,null,null,null,null,null,null,null,null,null,null,null,null,null,null,null,null,null,null,null,null,null,6410,"MCPB","µg/l",6410]
[null,null,null,null,null,null,null,null,null,null,null,null,null,null,null,null,null,null,null,null,null,null,null,null,null,null,null,null,null,null,null,null,null,null,null,null,null,null,null,null,null,null,null,null,null,6420,"MCPP","µg/l",6420]
[null,null,null,null,null,null,null,null,null,null,null,null,null,null,null,null,null,null,null,null,null,null,null,null,null,null,null,null,null,null,null,null,null,null,null,null,null,null,null,null,null,null,null,null,null,70,"Mesec","-",70]
[null,null,null,null,null,null,null,null,null,null,null,null,null,null,null,null,null,null,null,null,null,null,null,null,null,null,null,null,null,null,null,null,null,null,null,null,null,null,null,null,null,null,null,null,null,6025,"Metabolit S-metolaklora ESA","µg/l",6025]
[null,null,null,null,null,null,null,null,null,null,null,null,null,null,null,null,null,null,null,null,null,null,null,null,null,null,null,null,null,null,null,null,null,null,null,null,null,null,null,null,null,null,null,null,null,6023,"Metabolit S-metolaklora OXA","µg/l",6023]
[null,null,null,null,null,null,null,null,null,null,null,null,null,null,null,null,null,null,null,null,null,null,null,null,null,null,null,null,null,null,null,null,null,null,null,null,null,null,null,null,null,null,null,null,null,6480,"Metalaksil","µg/l",6480]
[null,null,null,null,null,null,null,null,null,null,null,null,null,null,null,null,null,null,null,null,null,null,null,null,null,null,null,null,null,null,null,null,null,null,null,null,null,null,null,null,null,null,null,null,null,6310,"Metamitron","µg/l",6310]
[null,null,null,null,null,null,null,null,null,null,null,null,null,null,null,null,null,null,null,null,null,null,null,null,null,null,null,null,null,null,null,null,null,null,null,null,null,null,null,null,null,null,null,null,null,1839,"metanol","mg/l",1839]
[null,null,null,null,null,null,null,null,null,null,null,null,null,null,null,null,null,null,null,null,null,null,null,null,null,null,null,null,null,null,null,null,null,null,null,null,null,null,null,null,null,null,null,null,null,6490,"Metazaklor","µg/l",6490]
[null,null,null,null,null,null,null,null,null,null,null,null,null,null,null,null,null,null,null,null,null,null,null,null,null,null,null,null,null,null,null,null,null,null,null,null,null,null,null,null,null,null,null,null,null,6492,"Metazaklor sed.","mg/kg",6492]
[null,null,null,null,null,null,null,null,null,null,null,null,null,null,null,null,null,null,null,null,null,null,null,null,null,null,null,null,null,null,null,null,null,null,null,null,null,null,null,null,null,null,null,null,null,6991,"metidation","µg/l",6991]
[null,null,null,null,null,null,null,null,null,null,null,null,null,null,null,null,null,null,null,null,null,null,null,null,null,null,null,null,null,null,null,null,null,null,null,null,null,null,null,null,null,null,null,null,null,3200,"Metil-terc-butil-eter (MTBE)","µg/l",3200]
[null,null,null,null,null,null,null,null,null,null,null,null,null,null,null,null,null,null,null,null,null,null,null,null,null,null,null,null,null,null,null,null,null,null,null,null,null,null,null,null,null,null,null,null,null,6645,"Metiokarb","µg/l",6645]
[null,null,null,null,null,null,null,null,null,null,null,null,null,null,null,null,null,null,null,null,null,null,null,null,null,null,null,null,null,null,null,null,null,null,null,null,null,null,null,null,null,null,null,null,null,6670,"Metiram","µg/l",6670]
[null,null,null,null,null,null,null,null,null,null,null,null,null,null,null,null,null,null,null,null,null,null,null,null,null,null,null,null,null,null,null,null,null,null,null,null,null,null,null,null,null,null,null,null,null,6342,"Metobromuron","µg/l",6342]
[null,null,null,null,null,null,null,null,null,null,null,null,null,null,null,null,null,null,null,null,null,null,null,null,null,null,null,null,null,null,null,null,null,null,null,null,null,null,null,null,null,null,null,null,null,1185,"Metoda meritva pretoka","-",1185]
[null,null,null,null,null,null,null,null,null,null,null,null,null,null,null,null,null,null,null,null,null,null,null,null,null,null,null,null,null,null,null,null,null,null,null,null,null,null,null,null,null,null,null,null,null,220,"Metoda vzorčenja","-",220]
[null,null,null,null,null,null,null,null,null,null,null,null,null,null,null,null,null,null,null,null,null,null,null,null,null,null,null,null,null,null,null,null,null,null,null,null,null,null,null,null,null,null,null,null,null,6175,"Metoksiklor (o,p)","µg/l",6175]
[null,null,null,null,null,null,null,null,null,null,null,null,null,null,null,null,null,null,null,null,null,null,null,null,null,null,null,null,null,null,null,null,null,null,null,null,null,null,null,null,null,null,null,null,null,6174,"Metoksiklor (o,p) sed.","mg/kg",6174]
[null,null,null,null,null,null,null,null,null,null,null,null,null,null,null,null,null,null,null,null,null,null,null,null,null,null,null,null,null,null,null,null,null,null,null,null,null,null,null,null,null,null,null,null,null,6176,"Metoksiklor (p,p)","µg/l",6176]
[null,null,null,null,null,null,null,null,null,null,null,null,null,null,null,null,null,null,null,null,null,null,null,null,null,null,null,null,null,null,null,null,null,null,null,null,null,null,null,null,null,null,null,null,null,6366,"Metoksuron","µg/l",6366]
[null,null,null,null,null,null,null,null,null,null,null,null,null,null,null,null,null,null,null,null,null,null,null,null,null,null,null,null,null,null,null,null,null,null,null,null,null,null,null,null,null,null,null,null,null,6022,"Metolaklor sed.","mg/kg",6022]
[null,null,null,null,null,null,null,null,null,null,null,null,null,null,null,null,null,null,null,null,null,null,null,null,null,null,null,null,null,null,null,null,null,null,null,null,null,null,null,null,null,null,null,null,null,215,"metolaklor-deskloro","µg/l",215]
[null,null,null,null,null,null,null,null,null,null,null,null,null,null,null,null,null,null,null,null,null,null,null,null,null,null,null,null,null,null,null,null,null,null,null,null,null,null,null,null,null,null,null,null,null,12004,"Metoprolol","µg/L",12004]
[null,null,null,null,null,null,null,null,null,null,null,null,null,null,null,null,null,null,null,null,null,null,null,null,null,null,null,null,null,null,null,null,null,null,null,null,null,null,null,null,null,null,null,null,null,6906,"Metosulam","µg/l",6906]
[null,null,null,null,null,null,null,null,null,null,null,null,null,null,null,null,null,null,null,null,null,null,null,null,null,null,null,null,null,null,null,null,null,null,null,null,null,null,null,null,null,null,null,null,null,6320,"Metribuzin","µg/l",6320]
[null,null,null,null,null,null,null,null,null,null,null,null,null,null,null,null,null,null,null,null,null,null,null,null,null,null,null,null,null,null,null,null,null,null,null,null,null,null,null,null,null,null,null,null,null,6850,"Mevinfos","µg/l",6850]
[null,null,null,null,null,null,null,null,null,null,null,null,null,null,null,null,null,null,null,null,null,null,null,null,null,null,null,null,null,null,null,null,null,null,null,null,null,null,null,null,null,null,null,null,null,6852,"Mevinfos sed.","mg/kg",6852]
[null,null,null,null,null,null,null,null,null,null,null,null,null,null,null,null,null,null,null,null,null,null,null,null,null,null,null,null,null,null,null,null,null,null,null,null,null,null,null,null,null,null,null,null,null,8220,"Mezitilen","ug/l",8220]
[null,null,null,null,null,null,null,null,null,null,null,null,null,null,null,null,null,null,null,null,null,null,null,null,null,null,null,null,null,null,null,null,null,null,null,null,null,null,null,null,null,null,null,null,null,6680,"Mezotrion","µg/l",6680]
[null,null,null,null,null,null,null,null,null,null,null,null,null,null,null,null,null,null,null,null,null,null,null,null,null,null,null,null,null,null,null,null,null,null,null,null,null,null,null,null,null,null,null,null,null,3072,"Mineralna olja - sed.","mg/kg",3072]
[null,null,null,null,null,null,null,null,null,null,null,null,null,null,null,null,null,null,null,null,null,null,null,null,null,null,null,null,null,null,null,null,null,null,null,null,null,null,null,null,null,null,null,null,null,100,"Minuta","-",100]
[null,null,null,null,null,null,null,null,null,null,null,null,null,null,null,null,null,null,null,null,null,null,null,null,null,null,null,null,null,null,null,null,null,null,null,null,null,null,null,null,null,null,null,null,null,517,"mireks","µg/l",517]
[null,null,null,null,null,null,null,null,null,null,null,null,null,null,null,null,null,null,null,null,null,null,null,null,null,null,null,null,null,null,null,null,null,null,null,null,null,null,null,null,null,null,null,null,null,3328,"Monobutil kositrove spojine  ","µg/l",3328]
[null,null,null,null,null,null,null,null,null,null,null,null,null,null,null,null,null,null,null,null,null,null,null,null,null,null,null,null,null,null,null,null,null,null,null,null,null,null,null,null,null,null,null,null,null,3325,"Monofenilkositer ","µg/l",3325]
[null,null,null,null,null,null,null,null,null,null,null,null,null,null,null,null,null,null,null,null,null,null,null,null,null,null,null,null,null,null,null,null,null,null,null,null,null,null,null,null,null,null,null,null,null,1051,"monoktotofos","µg/l",1051]
[null,null,null,null,null,null,null,null,null,null,null,null,null,null,null,null,null,null,null,null,null,null,null,null,null,null,null,null,null,null,null,null,null,null,null,null,null,null,null,null,null,null,null,null,null,6346,"Monolinuron","µg/l",6346]
[null,null,null,null,null,null,null,null,null,null,null,null,null,null,null,null,null,null,null,null,null,null,null,null,null,null,null,null,null,null,null,null,null,null,null,null,null,null,null,null,null,null,null,null,null,6344,"Monuron","µg/l",6344]
[null,null,null,null,null,null,null,null,null,null,null,null,null,null,null,null,null,null,null,null,null,null,null,null,null,null,null,null,null,null,null,null,null,null,null,null,null,null,null,null,null,null,null,null,null,1110,"Motnost","mg SiO2/l",1110]
[null,null,null,null,null,null,null,null,null,null,null,null,null,null,null,null,null,null,null,null,null,null,null,null,null,null,null,null,null,null,null,null,null,null,null,null,null,null,null,null,null,null,null,null,null,1114,"Motnost - ocena","-",1114]
[null,null,null,null,null,null,null,null,null,null,null,null,null,null,null,null,null,null,null,null,null,null,null,null,null,null,null,null,null,null,null,null,null,null,null,null,null,null,null,null,null,null,null,null,null,1460,"N,N-dietil-m-toluamid","µg/l",1460]
[null,null,null,null,null,null,null,null,null,null,null,null,null,null,null,null,null,null,null,null,null,null,null,null,null,null,null,null,null,null,null,null,null,null,null,null,null,null,null,null,null,null,null,null,null,1160,"Način odvzema","-",1160]
[null,null,null,null,null,null,null,null,null,null,null,null,null,null,null,null,null,null,null,null,null,null,null,null,null,null,null,null,null,null,null,null,null,null,null,null,null,null,null,null,null,null,null,null,null,7010,"Naftalen","µg/l",7010]
[null,null,null,null,null,null,null,null,null,null,null,null,null,null,null,null,null,null,null,null,null,null,null,null,null,null,null,null,null,null,null,null,null,null,null,null,null,null,null,null,null,null,null,null,null,7012,"Naftalen-sed.","mg/kg",7012]
[null,null,null,null,null,null,null,null,null,null,null,null,null,null,null,null,null,null,null,null,null,null,null,null,null,null,null,null,null,null,null,null,null,null,null,null,null,null,null,null,null,null,null,null,null,6540,"Napropamid","µg/l",6540]
[null,null,null,null,null,null,null,null,null,null,null,null,null,null,null,null,null,null,null,null,null,null,null,null,null,null,null,null,null,null,null,null,null,null,null,null,null,null,null,null,null,null,null,null,null,6542,"Napropamid sed.","mg/kg",6542]
[null,null,null,null,null,null,null,null,null,null,null,null,null,null,null,null,null,null,null,null,null,null,null,null,null,null,null,null,null,null,null,null,null,null,null,null,null,null,null,null,null,null,null,null,null,1091,"Nasičenost s kisikom - sonda","%",1091]
[null,null,null,null,null,null,null,null,null,null,null,null,null,null,null,null,null,null,null,null,null,null,null,null,null,null,null,null,null,null,null,null,null,null,null,null,null,null,null,null,null,null,null,null,null,6368,"Neburon","µg/l",6368]
[null,null,null,null,null,null,null,null,null,null,null,null,null,null,null,null,null,null,null,null,null,null,null,null,null,null,null,null,null,null,null,null,null,null,null,null,null,null,null,null,null,null,null,null,null,3040,"Neionski detergenti","mg Triton ",3040]
[null,null,null,null,null,null,null,null,null,null,null,null,null,null,null,null,null,null,null,null,null,null,null,null,null,null,null,null,null,null,null,null,null,null,null,null,null,null,null,null,null,null,null,null,null,2820,"Nekarbonatna trdota","0NT",2820]
[null,null,null,null,null,null,null,null,null,null,null,null,null,null,null,null,null,null,null,null,null,null,null,null,null,null,null,null,null,null,null,null,null,null,null,null,null,null,null,null,null,null,null,null,null,4250,"Nikelj-sed.","mg/kg",4250]
[null,null,null,null,null,null,null,null,null,null,null,null,null,null,null,null,null,null,null,null,null,null,null,null,null,null,null,null,null,null,null,null,null,null,null,null,null,null,null,null,null,null,null,null,null,6544,"Nikosulfuron","µg/l",6544]
[null,null,null,null,null,null,null,null,null,null,null,null,null,null,null,null,null,null,null,null,null,null,null,null,null,null,null,null,null,null,null,null,null,null,null,null,null,null,null,null,null,null,null,null,null,1150,"Nivo vode","m",1150]
[null,null,null,null,null,null,null,null,null,null,null,null,null,null,null,null,null,null,null,null,null,null,null,null,null,null,null,null,null,null,null,null,null,null,null,null,null,null,null,null,null,null,null,null,null,3260,"Nonilfenoli","µg/l",3260]
[null,null,null,null,null,null,null,null,null,null,null,null,null,null,null,null,null,null,null,null,null,null,null,null,null,null,null,null,null,null,null,null,null,null,null,null,null,null,null,null,null,null,null,null,null,1155,"Ocenjeni volumen v objektu","m3",1155]
[null,null,null,null,null,null,null,null,null,null,null,null,null,null,null,null,null,null,null,null,null,null,null,null,null,null,null,null,null,null,null,null,null,null,null,null,null,null,null,null,null,null,null,null,null,2370,"Oglj. ksl. prosta","mg CO2/l",2370]
[null,null,null,null,null,null,null,null,null,null,null,null,null,null,null,null,null,null,null,null,null,null,null,null,null,null,null,null,null,null,null,null,null,null,null,null,null,null,null,null,null,null,null,null,null,13030,"Oksadiazon","ng/L",13030]
[null,null,null,null,null,null,null,null,null,null,null,null,null,null,null,null,null,null,null,null,null,null,null,null,null,null,null,null,null,null,null,null,null,null,null,null,null,null,null,null,null,null,null,null,null,8212,"o-Ksilen","µg/l",8212]
[null,null,null,null,null,null,null,null,null,null,null,null,null,null,null,null,null,null,null,null,null,null,null,null,null,null,null,null,null,null,null,null,null,null,null,null,null,null,null,null,null,null,null,null,null,3270,"Oktilfenoli","µg/l",3270]
[null,null,null,null,null,null,null,null,null,null,null,null,null,null,null,null,null,null,null,null,null,null,null,null,null,null,null,null,null,null,null,null,null,null,null,null,null,null,null,null,null,null,null,null,null,6870,"Ometoat","µg/l",6870]
[null,null,null,null,null,null,null,null,null,null,null,null,null,null,null,null,null,null,null,null,null,null,null,null,null,null,null,null,null,null,null,null,null,null,null,null,null,null,null,null,null,null,null,null,null,6872,"Ometoat sed.","mg/kg",6872]
[null,null,null,null,null,null,null,null,null,null,null,null,null,null,null,null,null,null,null,null,null,null,null,null,null,null,null,null,null,null,null,null,null,null,null,null,null,null,null,null,null,null,null,null,null,1902,"Opombe - opažanja ob vzorčenju","-",1902]
[null,null,null,null,null,null,null,null,null,null,null,null,null,null,null,null,null,null,null,null,null,null,null,null,null,null,null,null,null,null,null,null,null,null,null,null,null,null,null,null,null,null,null,null,null,1904,"Opombe - opažanja stanja vode","-",1904]
[null,null,null,null,null,null,null,null,null,null,null,null,null,null,null,null,null,null,null,null,null,null,null,null,null,null,null,null,null,null,null,null,null,null,null,null,null,null,null,null,null,null,null,null,null,1900,"Opombe - stanje okolice","-",1900]
[null,null,null,null,null,null,null,null,null,null,null,null,null,null,null,null,null,null,null,null,null,null,null,null,null,null,null,null,null,null,null,null,null,null,null,null,null,null,null,null,null,null,null,null,null,2110,"Organski dušik","mg N/l",2110]
[null,null,null,null,null,null,null,null,null,null,null,null,null,null,null,null,null,null,null,null,null,null,null,null,null,null,null,null,null,null,null,null,null,null,null,null,null,null,null,null,null,null,null,null,null,7170,"PAO  skupaj","µg/l",7170]
[null,null,null,null,null,null,null,null,null,null,null,null,null,null,null,null,null,null,null,null,null,null,null,null,null,null,null,null,null,null,null,null,null,null,null,null,null,null,null,null,null,null,null,null,null,12030,"Paracetomol","µg/L",12030]
[null,null,null,null,null,null,null,null,null,null,null,null,null,null,null,null,null,null,null,null,null,null,null,null,null,null,null,null,null,null,null,null,null,null,null,null,null,null,null,null,null,null,null,null,null,1914,"paration","µg/l",1914]
[null,null,null,null,null,null,null,null,null,null,null,null,null,null,null,null,null,null,null,null,null,null,null,null,null,null,null,null,null,null,null,null,null,null,null,null,null,null,null,null,null,null,null,null,null,6190,"Paration-etil","µg/l",6190]
[null,null,null,null,null,null,null,null,null,null,null,null,null,null,null,null,null,null,null,null,null,null,null,null,null,null,null,null,null,null,null,null,null,null,null,null,null,null,null,null,null,null,null,null,null,6200,"Paration-metil","µg/l",6200]
[null,null,null,null,null,null,null,null,null,null,null,null,null,null,null,null,null,null,null,null,null,null,null,null,null,null,null,null,null,null,null,null,null,null,null,null,null,null,null,null,null,null,null,null,null,6202,"Paration-metil sed.","mg/kg",6202]
[null,null,null,null,null,null,null,null,null,null,null,null,null,null,null,null,null,null,null,null,null,null,null,null,null,null,null,null,null,null,null,null,null,null,null,null,null,null,null,null,null,null,null,null,null,1275,"PCB (vsota-6Ballscm.)","µg/l",1275]
[null,null,null,null,null,null,null,null,null,null,null,null,null,null,null,null,null,null,null,null,null,null,null,null,null,null,null,null,null,null,null,null,null,null,null,null,null,null,null,null,null,null,null,null,null,3084,"PCB-118","µg/l",3084]
[null,null,null,null,null,null,null,null,null,null,null,null,null,null,null,null,null,null,null,null,null,null,null,null,null,null,null,null,null,null,null,null,null,null,null,null,null,null,null,null,null,null,null,null,null,6484,"Pendimetalin","µg/l",6484]
[null,null,null,null,null,null,null,null,null,null,null,null,null,null,null,null,null,null,null,null,null,null,null,null,null,null,null,null,null,null,null,null,null,null,null,null,null,null,null,null,null,null,null,null,null,6483,"Pendimetalin sed.","mg/kg",6483]
[null,null,null,null,null,null,null,null,null,null,null,null,null,null,null,null,null,null,null,null,null,null,null,null,null,null,null,null,null,null,null,null,null,null,null,null,null,null,null,null,null,null,null,null,null,12032,"Penicilin G","µg/L",12032]
[null,null,null,null,null,null,null,null,null,null,null,null,null,null,null,null,null,null,null,null,null,null,null,null,null,null,null,null,null,null,null,null,null,null,null,null,null,null,null,null,null,null,null,null,null,6275,"penkonazol","µg/l",6275]
[null,null,null,null,null,null,null,null,null,null,null,null,null,null,null,null,null,null,null,null,null,null,null,null,null,null,null,null,null,null,null,null,null,null,null,null,null,null,null,null,null,null,null,null,null,6155,"pentaklorobenzen","µg/l",6155]
[null,null,null,null,null,null,null,null,null,null,null,null,null,null,null,null,null,null,null,null,null,null,null,null,null,null,null,null,null,null,null,null,null,null,null,null,null,null,null,null,null,null,null,null,null,2946,"Pentakloroetan","µg/L",2946]
[null,null,null,null,null,null,null,null,null,null,null,null,null,null,null,null,null,null,null,null,null,null,null,null,null,null,null,null,null,null,null,null,null,null,null,null,null,null,null,null,null,null,null,null,null,5170,"Pentaklorofenol","µg/l",5170]
[null,null,null,null,null,null,null,null,null,null,null,null,null,null,null,null,null,null,null,null,null,null,null,null,null,null,null,null,null,null,null,null,null,null,null,null,null,null,null,null,null,null,null,null,null,5172,"Pentaklorofenol, sed.","mg/kg",5172]
[null,null,null,null,null,null,null,null,null,null,null,null,null,null,null,null,null,null,null,null,null,null,null,null,null,null,null,null,null,null,null,null,null,null,null,null,null,null,null,null,null,null,null,null,null,6690,"Permetrin","µg/l",6690]
[null,null,null,null,null,null,null,null,null,null,null,null,null,null,null,null,null,null,null,null,null,null,null,null,null,null,null,null,null,null,null,null,null,null,null,null,null,null,null,null,null,null,null,null,null,6692,"Permetrin sed.","mg/kg",6692]
[null,null,null,null,null,null,null,null,null,null,null,null,null,null,null,null,null,null,null,null,null,null,null,null,null,null,null,null,null,null,null,null,null,null,null,null,null,null,null,null,null,null,null,null,null,6926,"Petoksamid","µg/l",6926]
[null,null,null,null,null,null,null,null,null,null,null,null,null,null,null,null,null,null,null,null,null,null,null,null,null,null,null,null,null,null,null,null,null,null,null,null,null,null,null,null,null,null,null,null,null,7080,"Piren","µg/l",7080]
[null,null,null,null,null,null,null,null,null,null,null,null,null,null,null,null,null,null,null,null,null,null,null,null,null,null,null,null,null,null,null,null,null,null,null,null,null,null,null,null,null,null,null,null,null,7082,"Piren-sed.","mg/kg",7082]
[null,null,null,null,null,null,null,null,null,null,null,null,null,null,null,null,null,null,null,null,null,null,null,null,null,null,null,null,null,null,null,null,null,null,null,null,null,null,null,null,null,null,null,null,null,1087,"piridafention","µg/l",1087]
[null,null,null,null,null,null,null,null,null,null,null,null,null,null,null,null,null,null,null,null,null,null,null,null,null,null,null,null,null,null,null,null,null,null,null,null,null,null,null,null,null,null,null,null,null,6352,"Piridat","µg/l",6352]
[null,null,null,null,null,null,null,null,null,null,null,null,null,null,null,null,null,null,null,null,null,null,null,null,null,null,null,null,null,null,null,null,null,null,null,null,null,null,null,null,null,null,null,null,null,6350,"Piridat-M","µg/l",6350]
[null,null,null,null,null,null,null,null,null,null,null,null,null,null,null,null,null,null,null,null,null,null,null,null,null,null,null,null,null,null,null,null,null,null,null,null,null,null,null,null,null,null,null,null,null,6285,"Pirimifos-metil","µg/l",6285]
[null,null,null,null,null,null,null,null,null,null,null,null,null,null,null,null,null,null,null,null,null,null,null,null,null,null,null,null,null,null,null,null,null,null,null,null,null,null,null,null,null,null,null,null,null,6640,"Pirimikarb","µg/l",6640]
[null,null,null,null,null,null,null,null,null,null,null,null,null,null,null,null,null,null,null,null,null,null,null,null,null,null,null,null,null,null,null,null,null,null,null,null,null,null,null,null,null,null,null,null,null,6642,"Pirimikarb sed.","mg/kg",6642]
[null,null,null,null,null,null,null,null,null,null,null,null,null,null,null,null,null,null,null,null,null,null,null,null,null,null,null,null,null,null,null,null,null,null,null,null,null,null,null,null,null,null,null,null,null,631,"Polarna organska topila","mg/l",631]
[null,null,null,null,null,null,null,null,null,null,null,null,null,null,null,null,null,null,null,null,null,null,null,null,null,null,null,null,null,null,null,null,null,null,null,null,null,null,null,null,null,null,null,null,null,3090,"Poliklorirani bifenili-sed.","µg/kg",3090]
[null,null,null,null,null,null,null,null,null,null,null,null,null,null,null,null,null,null,null,null,null,null,null,null,null,null,null,null,null,null,null,null,null,null,null,null,null,null,null,null,null,null,null,null,null,12,"Polje","-",12]
[null,null,null,null,null,null,null,null,null,null,null,null,null,null,null,null,null,null,null,null,null,null,null,null,null,null,null,null,null,null,null,null,null,null,null,null,null,null,null,null,null,null,null,null,null,1604,"Predčrpanje - čas črpanja","min",1604]
[null,null,null,null,null,null,null,null,null,null,null,null,null,null,null,null,null,null,null,null,null,null,null,null,null,null,null,null,null,null,null,null,null,null,null,null,null,null,null,null,null,null,null,null,null,1606,"Predčrpanje - prečrpan volumen","m3",1606]
[null,null,null,null,null,null,null,null,null,null,null,null,null,null,null,null,null,null,null,null,null,null,null,null,null,null,null,null,null,null,null,null,null,null,null,null,null,null,null,null,null,null,null,null,null,1602,"Predčrpanje - pretok črpalke","l/s",1602]
[null,null,null,null,null,null,null,null,null,null,null,null,null,null,null,null,null,null,null,null,null,null,null,null,null,null,null,null,null,null,null,null,null,null,null,null,null,null,null,null,null,null,null,null,null,1600,"Predčrpanje - tip črpalke","-",1600]
[null,null,null,null,null,null,null,null,null,null,null,null,null,null,null,null,null,null,null,null,null,null,null,null,null,null,null,null,null,null,null,null,null,null,null,null,null,null,null,null,null,null,null,null,null,1304,"Prehodnost vrtine pred predčrpanjem",null,1304]
[null,null,null,null,null,null,null,null,null,null,null,null,null,null,null,null,null,null,null,null,null,null,null,null,null,null,null,null,null,null,null,null,null,null,null,null,null,null,null,null,null,null,null,null,null,1132,"Premer objekta","m",1132]
[null,null,null,null,null,null,null,null,null,null,null,null,null,null,null,null,null,null,null,null,null,null,null,null,null,null,null,null,null,null,null,null,null,null,null,null,null,null,null,null,null,null,null,null,null,1180,"Pretok","m3/s",1180]
[null,null,null,null,null,null,null,null,null,null,null,null,null,null,null,null,null,null,null,null,null,null,null,null,null,null,null,null,null,null,null,null,null,null,null,null,null,null,null,null,null,null,null,null,null,1182,"Pretok - ocena","m3/s",1182]
[null,null,null,null,null,null,null,null,null,null,null,null,null,null,null,null,null,null,null,null,null,null,null,null,null,null,null,null,null,null,null,null,null,null,null,null,null,null,null,null,null,null,null,null,null,6912,"Primisulfuron-metil","µg/l",6912]
[null,null,null,null,null,null,null,null,null,null,null,null,null,null,null,null,null,null,null,null,null,null,null,null,null,null,null,null,null,null,null,null,null,null,null,null,null,null,null,null,null,null,null,null,null,6262,"Prometrin sed.","mg/kg",6262]
[null,null,null,null,null,null,null,null,null,null,null,null,null,null,null,null,null,null,null,null,null,null,null,null,null,null,null,null,null,null,null,null,null,null,null,null,null,null,null,null,null,null,null,null,null,1462,"prometron","µg/l",1462]
[null,null,null,null,null,null,null,null,null,null,null,null,null,null,null,null,null,null,null,null,null,null,null,null,null,null,null,null,null,null,null,null,null,null,null,null,null,null,null,null,null,null,null,null,null,12028,"Propanolol","µg/L",12028]
[null,null,null,null,null,null,null,null,null,null,null,null,null,null,null,null,null,null,null,null,null,null,null,null,null,null,null,null,null,null,null,null,null,null,null,null,null,null,null,null,null,null,null,null,null,6252,"Propazin sed.","mg/kg",6252]
[null,null,null,null,null,null,null,null,null,null,null,null,null,null,null,null,null,null,null,null,null,null,null,null,null,null,null,null,null,null,null,null,null,null,null,null,null,null,null,null,null,null,null,null,null,165,"Propifenazon","µg/l",165]
[null,null,null,null,null,null,null,null,null,null,null,null,null,null,null,null,null,null,null,null,null,null,null,null,null,null,null,null,null,null,null,null,null,null,null,null,null,null,null,null,null,null,null,null,null,6327,"Propikonazol","µg/l",6327]
[null,null,null,null,null,null,null,null,null,null,null,null,null,null,null,null,null,null,null,null,null,null,null,null,null,null,null,null,null,null,null,null,null,null,null,null,null,null,null,null,null,null,null,null,null,6550,"Prosimidon","µg/l",6550]
[null,null,null,null,null,null,null,null,null,null,null,null,null,null,null,null,null,null,null,null,null,null,null,null,null,null,null,null,null,null,null,null,null,null,null,null,null,null,null,null,null,null,null,null,null,6552,"Prosimidon sed.","mg/kg",6552]
[null,null,null,null,null,null,null,null,null,null,null,null,null,null,null,null,null,null,null,null,null,null,null,null,null,null,null,null,null,null,null,null,null,null,null,null,null,null,null,null,null,null,null,null,null,6910,"Prosulfokarb","µg/l",6910]
[null,null,null,null,null,null,null,null,null,null,null,null,null,null,null,null,null,null,null,null,null,null,null,null,null,null,null,null,null,null,null,null,null,null,null,null,null,null,null,null,null,null,null,null,null,6548,"Prosulfuron","µg/l",6548]
[null,null,null,null,null,null,null,null,null,null,null,null,null,null,null,null,null,null,null,null,null,null,null,null,null,null,null,null,null,null,null,null,null,null,null,null,null,null,null,null,null,null,null,null,null,9060,"Proteus sp.","-",9060]
[null,null,null,null,null,null,null,null,null,null,null,null,null,null,null,null,null,null,null,null,null,null,null,null,null,null,null,null,null,null,null,null,null,null,null,null,null,null,null,null,null,null,null,null,null,9080,"Pseudomonas aeruginosa","-",9080]
[null,null,null,null,null,null,null,null,null,null,null,null,null,null,null,null,null,null,null,null,null,null,null,null,null,null,null,null,null,null,null,null,null,null,null,null,null,null,null,null,null,null,null,null,null,1404,"raztopljene snovi (105oC)","mg/l",1404]
[null,null,null,null,null,null,null,null,null,null,null,null,null,null,null,null,null,null,null,null,null,null,null,null,null,null,null,null,null,null,null,null,null,null,null,null,null,null,null,null,null,null,null,null,null,6904,"Rimsulfuron","µg/l",6904]
[null,null,null,null,null,null,null,null,null,null,null,null,null,null,null,null,null,null,null,null,null,null,null,null,null,null,null,null,null,null,null,null,null,null,null,null,null,null,null,null,null,null,null,null,null,4485,"Rubidij-filt.","µg/L",4485]
[null,null,null,null,null,null,null,null,null,null,null,null,null,null,null,null,null,null,null,null,null,null,null,null,null,null,null,null,null,null,null,null,null,null,null,null,null,null,null,null,null,null,null,null,null,9081,"Salmonella","-",9081]
[null,null,null,null,null,null,null,null,null,null,null,null,null,null,null,null,null,null,null,null,null,null,null,null,null,null,null,null,null,null,null,null,null,null,null,null,null,null,null,null,null,null,null,null,null,6430,"Sebutilazin","µg/l",6430]
[null,null,null,null,null,null,null,null,null,null,null,null,null,null,null,null,null,null,null,null,null,null,null,null,null,null,null,null,null,null,null,null,null,null,null,null,null,null,null,null,null,null,null,null,null,6304,"Sekbumeton","µg/l",6304]
[null,null,null,null,null,null,null,null,null,null,null,null,null,null,null,null,null,null,null,null,null,null,null,null,null,null,null,null,null,null,null,null,null,null,null,null,null,null,null,null,null,null,null,null,null,6305,"Sekbumeton sed.","mg/kg",6305]
[null,null,null,null,null,null,null,null,null,null,null,null,null,null,null,null,null,null,null,null,null,null,null,null,null,null,null,null,null,null,null,null,null,null,null,null,null,null,null,null,null,null,null,null,null,279,"silicij","µg/l",279]
[null,null,null,null,null,null,null,null,null,null,null,null,null,null,null,null,null,null,null,null,null,null,null,null,null,null,null,null,null,null,null,null,null,null,null,null,null,null,null,null,null,null,null,null,null,6440,"Silvex","µg/l",6440]
[null,null,null,null,null,null,null,null,null,null,null,null,null,null,null,null,null,null,null,null,null,null,null,null,null,null,null,null,null,null,null,null,null,null,null,null,null,null,null,null,null,null,null,null,null,6242,"Simazin sed.","mg/kg",6242]
[null,null,null,null,null,null,null,null,null,null,null,null,null,null,null,null,null,null,null,null,null,null,null,null,null,null,null,null,null,null,null,null,null,null,null,null,null,null,null,null,null,null,null,null,null,1464,"simetrin","µg/l",1464]
[null,null,null,null,null,null,null,null,null,null,null,null,null,null,null,null,null,null,null,null,null,null,null,null,null,null,null,null,null,null,null,null,null,null,null,null,null,null,null,null,null,null,null,null,null,2240,"SiO2","mg SiO2/l",2240]
[null,null,null,null,null,null,null,null,null,null,null,null,null,null,null,null,null,null,null,null,null,null,null,null,null,null,null,null,null,null,null,null,null,null,null,null,null,null,null,null,null,null,null,null,null,2800,"Skupna trdota","0NT",2800]
[null,null,null,null,null,null,null,null,null,null,null,null,null,null,null,null,null,null,null,null,null,null,null,null,null,null,null,null,null,null,null,null,null,null,null,null,null,null,null,null,null,null,null,null,null,9010,"Skupne koliformne bakterije","MPN/100ml",9010]
[null,null,null,null,null,null,null,null,null,null,null,null,null,null,null,null,null,null,null,null,null,null,null,null,null,null,null,null,null,null,null,null,null,null,null,null,null,null,null,null,null,null,null,null,null,9030,"Skupno število aerobnih mezofilnih bakterij -220C","MPN/1ml",9030]
[null,null,null,null,null,null,null,null,null,null,null,null,null,null,null,null,null,null,null,null,null,null,null,null,null,null,null,null,null,null,null,null,null,null,null,null,null,null,null,null,null,null,null,null,null,9040,"Skupno število aerobnih mezofilnih bakterij-37 0C","MPN/1ml",9040]
[null,null,null,null,null,null,null,null,null,null,null,null,null,null,null,null,null,null,null,null,null,null,null,null,null,null,null,null,null,null,null,null,null,null,null,null,null,null,null,null,null,null,null,null,null,1305,"Standard predčrpanja",null,1305]
[null,null,null,null,null,null,null,null,null,null,null,null,null,null,null,null,null,null,null,null,null,null,null,null,null,null,null,null,null,null,null,null,null,null,null,null,null,null,null,null,null,null,null,null,null,9050,"Streptokoki fekalnega izvora","MPN/100ml",9050]
[null,null,null,null,null,null,null,null,null,null,null,null,null,null,null,null,null,null,null,null,null,null,null,null,null,null,null,null,null,null,null,null,null,null,null,null,null,null,null,null,null,null,null,null,null,4280,"Stroncij-filt.","µg/l",4280]
[null,null,null,null,null,null,null,null,null,null,null,null,null,null,null,null,null,null,null,null,null,null,null,null,null,null,null,null,null,null,null,null,null,null,null,null,null,null,null,null,null,null,null,null,null,12000,"Sulfamerazin","ug/L",12000]
[null,null,null,null,null,null,null,null,null,null,null,null,null,null,null,null,null,null,null,null,null,null,null,null,null,null,null,null,null,null,null,null,null,null,null,null,null,null,null,null,null,null,null,null,null,12034,"Sulfametoksazol","µg/L",12034]
[null,null,null,null,null,null,null,null,null,null,null,null,null,null,null,null,null,null,null,null,null,null,null,null,null,null,null,null,null,null,null,null,null,null,null,null,null,null,null,null,null,null,null,null,null,781,"sulfit","mg/l",781]
[null,null,null,null,null,null,null,null,null,null,null,null,null,null,null,null,null,null,null,null,null,null,null,null,null,null,null,null,null,null,null,null,null,null,null,null,null,null,null,null,null,null,null,null,null,9070,"Sulfitreducirajoči klostridiji","-",9070]
[null,null,null,null,null,null,null,null,null,null,null,null,null,null,null,null,null,null,null,null,null,null,null,null,null,null,null,null,null,null,null,null,null,null,null,null,null,null,null,null,null,null,null,null,null,6890,"Sulfosat","µg/l",6890]
[null,null,null,null,null,null,null,null,null,null,null,null,null,null,null,null,null,null,null,null,null,null,null,null,null,null,null,null,null,null,null,null,null,null,null,null,null,null,null,null,null,null,null,null,null,2020,"Suspendirane snovi po sušenju","mg/l",2020]
[null,null,null,null,null,null,null,null,null,null,null,null,null,null,null,null,null,null,null,null,null,null,null,null,null,null,null,null,null,null,null,null,null,null,null,null,null,null,null,null,null,null,null,null,null,4310,"Svinec-sed.","mg/kg",4310]
[null,null,null,null,null,null,null,null,null,null,null,null,null,null,null,null,null,null,null,null,null,null,null,null,null,null,null,null,null,null,null,null,null,null,null,null,null,null,null,null,null,null,null,null,null,20,"Šifra postaje","-",20]
[null,null,null,null,null,null,null,null,null,null,null,null,null,null,null,null,null,null,null,null,null,null,null,null,null,null,null,null,null,null,null,null,null,null,null,null,null,null,null,null,null,null,null,null,null,1616,"Temperatura vode na koncu","oC",1616]
[null,null,null,null,null,null,null,null,null,null,null,null,null,null,null,null,null,null,null,null,null,null,null,null,null,null,null,null,null,null,null,null,null,null,null,null,null,null,null,null,null,null,null,null,null,1614,"Temperatura vode na začetku","oC",1614]
[null,null,null,null,null,null,null,null,null,null,null,null,null,null,null,null,null,null,null,null,null,null,null,null,null,null,null,null,null,null,null,null,null,null,null,null,null,null,null,null,null,null,null,null,null,12038,"Teofilin","µg/L",12038]
[null,null,null,null,null,null,null,null,null,null,null,null,null,null,null,null,null,null,null,null,null,null,null,null,null,null,null,null,null,null,null,null,null,null,null,null,null,null,null,null,null,null,null,null,null,6300,"Terbumeton","µg/l",6300]
[null,null,null,null,null,null,null,null,null,null,null,null,null,null,null,null,null,null,null,null,null,null,null,null,null,null,null,null,null,null,null,null,null,null,null,null,null,null,null,null,null,null,null,null,null,6282,"Terbutilazin sed.","mg/kg",6282]
[null,null,null,null,null,null,null,null,null,null,null,null,null,null,null,null,null,null,null,null,null,null,null,null,null,null,null,null,null,null,null,null,null,null,null,null,null,null,null,null,null,null,null,null,null,6290,"Terbutrin","µg/l",6290]
[null,null,null,null,null,null,null,null,null,null,null,null,null,null,null,null,null,null,null,null,null,null,null,null,null,null,null,null,null,null,null,null,null,null,null,null,null,null,null,null,null,null,null,null,null,6292,"Terbutrin sed.","mg/kg",6292]
[null,null,null,null,null,null,null,null,null,null,null,null,null,null,null,null,null,null,null,null,null,null,null,null,null,null,null,null,null,null,null,null,null,null,null,null,null,null,null,null,null,null,null,null,null,9130,"Termotolerantni kampilobaktri","??",9130]
[null,null,null,null,null,null,null,null,null,null,null,null,null,null,null,null,null,null,null,null,null,null,null,null,null,null,null,null,null,null,null,null,null,null,null,null,null,null,null,null,null,null,null,null,null,12036,"Testosteron","µg/L",12036]
[null,null,null,null,null,null,null,null,null,null,null,null,null,null,null,null,null,null,null,null,null,null,null,null,null,null,null,null,null,null,null,null,null,null,null,null,null,null,null,null,null,null,null,null,null,1970,"tetrabutil kositer","µg/l",1970]
[null,null,null,null,null,null,null,null,null,null,null,null,null,null,null,null,null,null,null,null,null,null,null,null,null,null,null,null,null,null,null,null,null,null,null,null,null,null,null,null,null,null,null,null,null,6630,"Tetradifon","µg/l",6630]
[null,null,null,null,null,null,null,null,null,null,null,null,null,null,null,null,null,null,null,null,null,null,null,null,null,null,null,null,null,null,null,null,null,null,null,null,null,null,null,null,null,null,null,null,null,6632,"Tetradifon sed.","mg/kg",6632]
[null,null,null,null,null,null,null,null,null,null,null,null,null,null,null,null,null,null,null,null,null,null,null,null,null,null,null,null,null,null,null,null,null,null,null,null,null,null,null,null,null,null,null,null,null,6547,"Tiakloprid","µg/l",6547]
[null,null,null,null,null,null,null,null,null,null,null,null,null,null,null,null,null,null,null,null,null,null,null,null,null,null,null,null,null,null,null,null,null,null,null,null,null,null,null,null,null,null,null,null,null,6537,"Tiametoksam","µg/l",6537]
[null,null,null,null,null,null,null,null,null,null,null,null,null,null,null,null,null,null,null,null,null,null,null,null,null,null,null,null,null,null,null,null,null,null,null,null,null,null,null,null,null,null,null,null,null,6900,"Tifensulfuron-metil","µg/l",6900]
[null,null,null,null,null,null,null,null,null,null,null,null,null,null,null,null,null,null,null,null,null,null,null,null,null,null,null,null,null,null,null,null,null,null,null,null,null,null,null,null,null,null,null,null,null,2101,"TOC sed.","%",2101]
[null,null,null,null,null,null,null,null,null,null,null,null,null,null,null,null,null,null,null,null,null,null,null,null,null,null,null,null,null,null,null,null,null,null,null,null,null,null,null,null,null,null,null,null,null,8112,"trans-1,2-Dikloroeten","µg/l",8112]
[null,null,null,null,null,null,null,null,null,null,null,null,null,null,null,null,null,null,null,null,null,null,null,null,null,null,null,null,null,null,null,null,null,null,null,null,null,null,null,null,null,null,null,null,null,6112,"trans-heptaklorepoksid","µg/l",6112]
[null,null,null,null,null,null,null,null,null,null,null,null,null,null,null,null,null,null,null,null,null,null,null,null,null,null,null,null,null,null,null,null,null,null,null,null,null,null,null,null,null,null,null,null,null,6116,"trans-Klordan","µg/l",6116]
[null,null,null,null,null,null,null,null,null,null,null,null,null,null,null,null,null,null,null,null,null,null,null,null,null,null,null,null,null,null,null,null,null,null,null,null,null,null,null,null,null,null,null,null,null,6118,"trans-Klordan sed.","mg/kg",6118]
[null,null,null,null,null,null,null,null,null,null,null,null,null,null,null,null,null,null,null,null,null,null,null,null,null,null,null,null,null,null,null,null,null,null,null,null,null,null,null,null,null,null,null,null,null,6325,"Triadimefon","µg/l",6325]
[null,null,null,null,null,null,null,null,null,null,null,null,null,null,null,null,null,null,null,null,null,null,null,null,null,null,null,null,null,null,null,null,null,null,null,null,null,null,null,null,null,null,null,null,null,6326,"Triadimefon sed.","mg/kg",6326]
[null,null,null,null,null,null,null,null,null,null,null,null,null,null,null,null,null,null,null,null,null,null,null,null,null,null,null,null,null,null,null,null,null,null,null,null,null,null,null,null,null,null,null,null,null,13035,"Trialat","ng/L",13035]
[null,null,null,null,null,null,null,null,null,null,null,null,null,null,null,null,null,null,null,null,null,null,null,null,null,null,null,null,null,null,null,null,null,null,null,null,null,null,null,null,null,null,null,null,null,6348,"Triasulfuron","µg/l",6348]
[null,null,null,null,null,null,null,null,null,null,null,null,null,null,null,null,null,null,null,null,null,null,null,null,null,null,null,null,null,null,null,null,null,null,null,null,null,null,null,null,null,null,null,null,null,1151,"triazofos","µg/l",1151]
[null,null,null,null,null,null,null,null,null,null,null,null,null,null,null,null,null,null,null,null,null,null,null,null,null,null,null,null,null,null,null,null,null,null,null,null,null,null,null,null,null,null,null,null,null,8020,"Tribromometan","µg/l",8020]
[null,null,null,null,null,null,null,null,null,null,null,null,null,null,null,null,null,null,null,null,null,null,null,null,null,null,null,null,null,null,null,null,null,null,null,null,null,null,null,null,null,null,null,null,null,3120,"Tributilfosfat","µg/l",3120]
[null,null,null,null,null,null,null,null,null,null,null,null,null,null,null,null,null,null,null,null,null,null,null,null,null,null,null,null,null,null,null,null,null,null,null,null,null,null,null,null,null,null,null,null,null,3310,"Tributilkositrove spojine ","µg TBT/l",3310]
[null,null,null,null,null,null,null,null,null,null,null,null,null,null,null,null,null,null,null,null,null,null,null,null,null,null,null,null,null,null,null,null,null,null,null,null,null,null,null,null,null,null,null,null,null,3307,"Trifenil kositrove spojine ","µg/l",3307]
[null,null,null,null,null,null,null,null,null,null,null,null,null,null,null,null,null,null,null,null,null,null,null,null,null,null,null,null,null,null,null,null,null,null,null,null,null,null,null,null,null,null,null,null,null,6546,"Trifloksistrobin","µg/l",6546]
[null,null,null,null,null,null,null,null,null,null,null,null,null,null,null,null,null,null,null,null,null,null,null,null,null,null,null,null,null,null,null,null,null,null,null,null,null,null,null,null,null,null,null,null,null,6485,"Trifluralin","µg/l",6485]
[null,null,null,null,null,null,null,null,null,null,null,null,null,null,null,null,null,null,null,null,null,null,null,null,null,null,null,null,null,null,null,null,null,null,null,null,null,null,null,null,null,null,null,null,null,6486,"Trifluralin sed.","mg/kg",6486]
[null,null,null,null,null,null,null,null,null,null,null,null,null,null,null,null,null,null,null,null,null,null,null,null,null,null,null,null,null,null,null,null,null,null,null,null,null,null,null,null,null,null,null,null,null,8300,"Trihalometani - skupaj","µg/l",8300]
[null,null,null,null,null,null,null,null,null,null,null,null,null,null,null,null,null,null,null,null,null,null,null,null,null,null,null,null,null,null,null,null,null,null,null,null,null,null,null,null,null,null,null,null,null,1159,"triklorfon","µg/l",1159]
[null,null,null,null,null,null,null,null,null,null,null,null,null,null,null,null,null,null,null,null,null,null,null,null,null,null,null,null,null,null,null,null,null,null,null,null,null,null,null,null,null,null,null,null,null,8050,"Triklornitrometan","µg/l",8050]
[null,null,null,null,null,null,null,null,null,null,null,null,null,null,null,null,null,null,null,null,null,null,null,null,null,null,null,null,null,null,null,null,null,null,null,null,null,null,null,null,null,null,null,null,null,6169,"Triklorobenzeni","µg/l",6169]
[null,null,null,null,null,null,null,null,null,null,null,null,null,null,null,null,null,null,null,null,null,null,null,null,null,null,null,null,null,null,null,null,null,null,null,null,null,null,null,null,null,null,null,null,null,8170,"Triklorofluorometan","µg/l",8170]
[null,null,null,null,null,null,null,null,null,null,null,null,null,null,null,null,null,null,null,null,null,null,null,null,null,null,null,null,null,null,null,null,null,null,null,null,null,null,null,null,null,null,null,null,null,12002,"Trimetoprim","µg/L",12002]
[null,null,null,null,null,null,null,null,null,null,null,null,null,null,null,null,null,null,null,null,null,null,null,null,null,null,null,null,null,null,null,null,null,null,null,null,null,null,null,null,null,null,null,null,null,3100,"Tris(kloroetil)fosfat","µg/l",3100]
[null,null,null,null,null,null,null,null,null,null,null,null,null,null,null,null,null,null,null,null,null,null,null,null,null,null,null,null,null,null,null,null,null,null,null,null,null,null,null,null,null,null,null,null,null,3110,"Tris(kloropropil)fosfat","µg/l",3110]
[null,null,null,null,null,null,null,null,null,null,null,null,null,null,null,null,null,null,null,null,null,null,null,null,null,null,null,null,null,null,null,null,null,null,null,null,null,null,null,null,null,null,null,null,null,6914,"Tritosulfuron","µg/l",6914]
[null,null,null,null,null,null,null,null,null,null,null,null,null,null,null,null,null,null,null,null,null,null,null,null,null,null,null,null,null,null,null,null,null,null,null,null,null,null,null,null,null,null,null,null,null,90,"Ura","-",90]
[null,null,null,null,null,null,null,null,null,null,null,null,null,null,null,null,null,null,null,null,null,null,null,null,null,null,null,null,null,null,null,null,null,null,null,null,null,null,null,null,null,null,null,null,null,4320,"Uran-filt.","µg/l",4320]
[null,null,null,null,null,null,null,null,null,null,null,null,null,null,null,null,null,null,null,null,null,null,null,null,null,null,null,null,null,null,null,null,null,null,null,null,null,null,null,null,null,null,null,null,null,751,"usedljive snovi","mg/l",751]
[null,null,null,null,null,null,null,null,null,null,null,null,null,null,null,null,null,null,null,null,null,null,null,null,null,null,null,null,null,null,null,null,null,null,null,null,null,null,null,null,null,null,null,null,null,1163,"vamidotion","µg/l",1163]
[null,null,null,null,null,null,null,null,null,null,null,null,null,null,null,null,null,null,null,null,null,null,null,null,null,null,null,null,null,null,null,null,null,null,null,null,null,null,null,null,null,null,null,null,null,2390,"Vezana ogljikova kislina ","mg CO2/l",2390]
[null,null,null,null,null,null,null,null,null,null,null,null,null,null,null,null,null,null,null,null,null,null,null,null,null,null,null,null,null,null,null,null,null,null,null,null,null,null,null,null,null,null,null,null,null,1135,"Vgrajen črpalni sistem","-",1135]
[null,null,null,null,null,null,null,null,null,null,null,null,null,null,null,null,null,null,null,null,null,null,null,null,null,null,null,null,null,null,null,null,null,null,null,null,null,null,null,null,null,null,null,null,null,8830,"Vinilklorid","µg/l",8830]
[null,null,null,null,null,null,null,null,null,null,null,null,null,null,null,null,null,null,null,null,null,null,null,null,null,null,null,null,null,null,null,null,null,null,null,null,null,null,null,null,null,null,null,null,null,6560,"Vinklozolin","µg/l",6560]
[null,null,null,null,null,null,null,null,null,null,null,null,null,null,null,null,null,null,null,null,null,null,null,null,null,null,null,null,null,null,null,null,null,null,null,null,null,null,null,null,null,null,null,null,null,6562,"Vinklozolin sed.","mg/kg",6562]
[null,null,null,null,null,null,null,null,null,null,null,null,null,null,null,null,null,null,null,null,null,null,null,null,null,null,null,null,null,null,null,null,null,null,null,null,null,null,null,null,null,null,null,null,null,1153,"Višina vodnega stolpca","m",1153]
[null,null,null,null,null,null,null,null,null,null,null,null,null,null,null,null,null,null,null,null,null,null,null,null,null,null,null,null,null,null,null,null,null,null,null,null,null,null,null,null,null,null,null,null,null,1120,"Vodostaj","cm",1120]
[null,null,null,null,null,null,null,null,null,null,null,null,null,null,null,null,null,null,null,null,null,null,null,null,null,null,null,null,null,null,null,null,null,null,null,null,null,null,null,null,null,null,null,null,null,1121,"Vodostaj - ocena","-",1121]
[null,null,null,null,null,null,null,null,null,null,null,null,null,null,null,null,null,null,null,null,null,null,null,null,null,null,null,null,null,null,null,null,null,null,null,null,null,null,null,null,null,null,null,null,null,1050,"Vonj","-",1050]
[null,null,null,null,null,null,null,null,null,null,null,null,null,null,null,null,null,null,null,null,null,null,null,null,null,null,null,null,null,null,null,null,null,null,null,null,null,null,null,null,null,null,null,null,null,1530,"Vreme med vzorčenjem","-",1530]
[null,null,null,null,null,null,null,null,null,null,null,null,null,null,null,null,null,null,null,null,null,null,null,null,null,null,null,null,null,null,null,null,null,null,null,null,null,null,null,null,null,null,null,null,null,1520,"Vreme pred vzorčenjem","-",1520]
[null,null,null,null,null,null,null,null,null,null,null,null,null,null,null,null,null,null,null,null,null,null,null,null,null,null,null,null,null,null,null,null,null,null,null,null,null,null,null,null,null,null,null,null,null,2710,"Vsota anionov","meqv/l ",2710]
[null,null,null,null,null,null,null,null,null,null,null,null,null,null,null,null,null,null,null,null,null,null,null,null,null,null,null,null,null,null,null,null,null,null,null,null,null,null,null,null,null,null,null,null,null,2700,"Vsota kationov","meqv/l ",2700]
[null,null,null,null,null,null,null,null,null,null,null,null,null,null,null,null,null,null,null,null,null,null,null,null,null,null,null,null,null,null,null,null,null,null,null,null,null,null,null,null,null,null,null,null,null,1248,"Vsota PBDE (bromirani difeniletri)","µg/l",1248]
[null,null,null,null,null,null,null,null,null,null,null,null,null,null,null,null,null,null,null,null,null,null,null,null,null,null,null,null,null,null,null,null,null,null,null,null,null,null,null,null,null,null,null,null,null,200,"Vzorec odvzel","-",200]
[null,null,null,null,null,null,null,null,null,null,null,null,null,null,null,null,null,null,null,null,null,null,null,null,null,null,null,null,null,null,null,null,null,null,null,null,null,null,null,null,null,null,null,null,null,2303,"železo-nefilt.","mg/l",2303]
[null,null,null,null,null,null,null,null,null,null,null,null,null,null,null,null,null,null,null,null,null,null,null,null,null,null,null,null,null,null,null,null,null,null,null,null,null,null,null,null,null,null,null,null,null,4360,"Živo srebro-sed.","mg/kg",4360]